{"text_format":"1","workbook":"xlsx","n_sheets":20,"sheets":["操作説明","添付様式","第11号(第１面)","第２面","第３面","４面","第５面","第６面（フルタイム）","第６面（短時間）","第６面（１年未満）","第７面","第８面","第９面","産業分類番号","安全衛生規則","第10面","第11面 ","第12面","第13面 ","第14面"],"not_rendered":{"charts":0,"images":0,"macros":1,"external_links":0,"defined_names":16,"comments":0,"pivot_tables":0},"unopened":[],"bounds":{"document_bytes":16777216,"sheet_cells":100000,"rows_first":2000,"rows_last":500,"rows_between":2000,"halvings":0,"cell_chars":16384,"cell_head_chars":4096},"cells_cut":0,"cells_raw":0,"read":"whole","date_system":"1900"}

{"sheet":"操作説明","index":0,"n_rows":26,"n_cols":3,"rows_kept":26,"cut":false,"hidden":false,"merged":[]}
[]
[]
[null,"①","エラーチェック機能を正しく活用するためには、入力の前に、「コンテンツの有効化」を実施してください。"]
[null,null,"また、「数式」-「計算方法の設定」-「自動」を選択してください。"]
[]
[null,"②","数字を入力するときは、半角で入力してください。"]
[]
[null,"③","黄色の欄は自動計算を行いますので、入力不要です。"]
[]
[null,"④","第６面は、①キャリアコンサルティングの窓口担当者の人数、②キャリアコンサルティングの実施状況は、フルタイム（１年以上雇用見込み）シートに入力してください。\n③キャリアアップに資する教育訓練は、フルタイム（１年以上雇用見込み）、短時間勤務（１年以上雇用見込み）、１年未満雇用見込みのうち、該当するシートのみ入力してください。"]
[]
[null,"⑤","第１面から第９面までの入力対象すべての欄の入力が完了しましたら、第１面左上の「入力チェック」ボタンを押してください。入力エラーがあるときは、該当の欄にカーソルが移動し、赤くなります。"]
[]
[null,"⑥","入力エラーの修正が終わりましたら、再度「入力チェック」ボタンを押してください。"]
[]
[null,null,"入力エラーは、１つの欄ずつ表示されます。入力エラーがなくなるまで、⑤⑥の作業を繰り返してください。"]
[]
[null,"⑦","入力エラーがなくなりましたら、第１面14備考欄に「入力チェック済」と表示されます。"]
[]
[null,null,"このファイルのチェック機能は、すべてのエラーに対応していません。入力漏れや入力誤りがないか、再度ご確認をお願いします。"]
[]
[null,null,"「入力チェック済」と表示されている場合であっても、提出した事業報告書について、労働局の担当者から確認及び修正をお願いすることがありますので、あらかじめ、ご了承ください。"]
[]
[null,"⑧","入力漏れ及び入力誤りの確認が完了しましたら、窓口又は郵送で提出する場合は、第１面から第９面（第６面は入力したシートのみ）までを３部ずつ印刷し、管轄労働局に提出してください。\nその際、労働者派遣法第30条の４に規定する労使協定を締結している事業所については、当該労使協定の写しを２部添付することが必要です。"]
[]
[null,null,"あわせて、次シートの「添付様式」を入力し１部を事業報告書に添付いただきますよう、ご協力をお願いします。"]

{"sheet":"添付様式","index":1,"n_rows":37,"n_cols":9,"rows_kept":37,"cut":false,"hidden":false,"merged":[]}
[]
[]
[null,null,null,null,null,"許可番号/枝番号",null,null,"派04-                 -     "]
[null,null,null,null,null,"事業所名"]
[]
[null,"労働者派遣法第30条の４第１項の協定（※）を締結していますか"]
[]
[null,"どちらかを☑してください。"]
[]
[null,"　　締結している"]
[]
[null,"　　事業報告書に労使協定を添付してください"]
[]
[null,null,"労使協定を締結している場合その協定書（写し）を添付。"]
[null,null,"協定書自体ではなく、就業規則、賃金規程等に定められている 場合には、労使協定書本体 に加えて、"]
[null,null,"労使協定で引用 している就業規則、賃金規程等もあわせて事業報告書に添付。"]
[]
[]
[]
[null,"　　締結していない"]
[]
[null,"　　労働者派遣の実績がある場合には、「派遣先均等・均衡方式」によって派"]
[null,"　　遣労働者の待遇を決定しているか、再確認をお願いします。"]
[]
[]
[]
[]
[null,"※労働者派遣法第30条の４第１項の協定"]
[null,"　 同一労働同一賃金の実現に向けた「不合理な待遇差をなくすための規定を"]
[null,"　 整備するために締結する」労使協定のことです。"]
[]
[]
[]
[]
[null,"※労使協定書（写し）を添付する場合は、1枚目の許可番号、枝番の記載をしてください。"]
[null,"　労使協定で引用 している就業規則、賃金規程等もあわせて添付する場合も"]
[null,"　それぞれ1枚目に許可番号、枝番の記載をしてください。"]

{"sheet":"第11号(第１面)","index":2,"n_rows":50,"n_cols":14,"rows_kept":50,"cut":false,"hidden":false,"merged":[[40,6,40,8],[29,0,29,3],[27,10,27,11],[27,4,27,9],[31,8,31,11],[31,4,31,7],[39,9,39,11],[40,9,40,11],[40,4,40,5],[40,1,40,3],[34,10,34,11],[33,10,33,11],[27,0,27,3],[32,0,32,3],[35,1,35,3],[36,0,37,3],[37,7,37,8],[37,4,37,6],[24,0,25,3],[24,4,24,5],[24,6,24,11],[25,4,25,7],[25,8,25,11],[34,4,34,8],[29,4,29,11],[30,0,31,3],[26,10,26,11],[26,4,26,9],[22,4,22,11],[50,1,51,11],[49,3,49,11],[46,0,47,1],[45,4,45,5],[45,7,45,9],[46,2,47,11],[23,0,23,3],[43,9,43,11],[39,3,39,7],[32,4,32,6],[30,4,30,5],[30,6,30,11],[42,7,43,8],[37,9,37,11],[36,10,36,11],[23,4,23,11],[43,4,43,6],[2,8,2,9],[2,10,2,11],[4,10,4,11],[4,8,4,9],[28,4,28,11],[6,4,7,6],[3,8,3,9],[3,10,3,11],[7,7,7,10],[6,7,6,10],[10,9,10,11],[12,1,12,4],[19,0,20,11],[15,8,17,10]]}
[]
["様式第11号（第１面）",null,null,null,null,null,null,null,null,null,null,"（日本産業規格Ａ列４）"]
[null,null,null,null,null,null,null,null,"許可番号"]
[null,null,null,null,null,null,null,null,"事業所枝番号",null,null,null,null,"許可証の右下欄外に印字されている枝番号。"]
[null,null,null,null,null,null,null,null,"許可年月日",null,"2000-04-01"]
[]
[null,null,null,null,"労働者派遣事業報告書",null,null,"（年度報告）"]
[null,null,null,null,null,null,null,"（６月１日現在の状況報告）"]
[]
[]
[null,null,null,null,null,null,null,null,null,"令和　　年　　月　　日"]
[]
[null,"厚　生　労　働　大　臣　　殿"]
[]
[]
[]
[null,null,null,null,null,null,null,"提出者"]
[]
[]
["　労働者派遣事業の適正な運営の確保及び派遣労働者の保護等に関する法律第23条第１項の規定により、下記のとおり事業報告書を提出します。"]
[]
[]
["（ふりがな）"]
["１ 氏名又は名称"]
["２ 住　所",null,null,null,"〒（　　　　　）"]
[null,null,null,null,null,null,null,null," （　　　　）　　　　-　　　　　　　　　"]
["（ふりがな）",null,null,null,{"$f":"PHONETIC(E28)","v":""},null,null,null,null,null,"役　名"]
["３ 代表者の氏名\n（法人の場合）"]
["（ふりがな）"]
["４ 事業所の名称"]
["５ 事業所の住所",null,null,null,"〒（　　　　　）"]
[null,null,null,null,null,null,null,null," （　　　　）　　　　-　　　　　　　　　"]
["６ 大企業、中小企業の別",null,null,null,"１　大企業　　　　２　中小企業"]
[]
["７","産業分類",null,"名称",{"$f":"IFERROR(VLOOKUP(TEXT(K35,\"0000\"),産業分類番号!C28:D1487,2,FALSE),\"\")","v":""},null,null,null,null,"分類番号",null,null,null,"分類番号は、「産業分類番号」シート又は許可申請書の控え等を参照。"]
["８","事業年度の開始の日及び当該事業年度の終了の日",null,null,null,"～",null,null,null,null,null,null,null,"直近の事業年度の期間を入力（事業年度終了の日は、令和４年６月１日から令和５年５月31日の間）。"]
["９ 民営職業紹介事業との兼業"]
[null,null,null,null,"１　有　　　　２　無",null,null,"許可・届出番号"]
[]
["10 親会社の名称",null,null,null,null,null,null,null,"備考"]
[null,"①労働者派遣事業の許可番号",null,null,null,null,"②民営職業紹介事業の許可・届出番号"]
[]
[null,null,null,null,null,null,null,"うち構内請負の実施"]
["11 請負事業の実施",null,null,null,"１　有　　　　２　無",null,null,null,null,"１　有　　　２　無"]
[]
[null,null,null,null,null,null,null,null,null,null,null,null,null,"売上高は、事業所ごとの金額を入力。"]
["12 備考"]
[]
[]
["※労働局記入欄",null,null,"入力チェック済"]

{"sheet":"第２面","index":3,"n_rows":62,"n_cols":19,"rows_kept":62,"cut":false,"hidden":false,"merged":[[53,15,53,16],[46,14,46,15],[51,15,52,16],[59,15,59,16],[58,15,58,16],[57,15,57,16],[56,15,56,16],[55,15,55,16],[54,15,54,16],[51,14,52,14],[6,6,9,6],[7,7,9,7],[7,9,9,9],[8,8,9,8],[8,10,9,10],[32,4,33,5],[33,11,33,12],[32,11,32,12],[28,2,31,5],[28,6,33,6],[28,7,33,7],[28,8,33,8],[28,9,33,9],[28,11,29,12],[44,14,45,15],[36,4,36,5],[37,4,37,5],[38,4,38,5],[42,7,44,7],[42,8,44,8],[41,1,45,4],[42,5,44,5],[42,6,44,6],[42,9,44,9],[34,4,34,5],[34,11,34,12],[34,13,34,15],[35,4,35,5],[35,11,35,12],[35,13,35,15],[51,10,52,10],[51,11,51,13],[42,12,45,12],[43,13,45,13],[41,11,45,11],[60,1,60,3],[51,5,52,5],[46,2,46,4],[47,2,47,4],[48,2,48,4],[10,12,10,14],[8,12,9,15],[12,12,12,15],[15,13,15,15],[62,1,62,3],[57,2,57,4],[58,2,58,4],[59,2,59,4],[51,1,52,4],[61,1,61,3],[56,2,56,4],[53,1,53,4],[54,2,54,4],[55,2,55,4],[51,6,52,6],[51,8,52,8],[13,12,13,14],[19,14,19,15],[23,14,23,15],[33,13,33,15],[32,13,32,15],[21,14,22,15],[28,13,29,15],[30,11,30,12],[30,13,30,15],[31,11,31,12],[31,13,31,15]]}
[]
["様式第11号（第２面）",null,null,null,null,null,null,null,null,null,null,null,null,null,null,null,"（日本産業規格Ａ列４）"]
[]
["Ⅰ　年度報告",null,null,null,null,null,null,null,null,null,null,null,null,null,null,null,null,null,"Ⅰ（１）は「決算期末」における人数です。"]
[]
["（１）派遣労働者数等雇用実績（実人数）（報告対象期間末日現在）",null,null,null,null,null,null,null,null,null,null,null,"（２）労働者派遣事業の売上高",null,null,null,null,null,"具体的には、報告対象期間末日（第１面８欄の事業年度の終了の日。通常は決算日）に在籍している人数です。"]
[null,null,null,null,null,null,"計"]
[null,null,null,null,null,null,null,"通算雇用期間が１年以上の派遣労働者",null,"通算雇用期間が１年未満の派遣労働者"]
[null,null,null,null,null,null,null,null,"うち同じ職場に１年以上派遣見込みの者",null,"うち同じ職場に１年以上派遣見込みの者",null,null,null,null,null,null,null,"売上高は、事業所ごとの金額を入力。"]
[]
[null,"①全労働者",null,null,null,null,null,"－","－","－","－",null,"※労働者派遣事業を行う事業所ごとの労働者派遣事業\nの売上高について、決算後の金額を記載",null,null,null,null,null,"「①全労働者」は、派遣労働者以外の労働者も含めた全労働者数を入力します。"]
[null,null,"②派遣労働者総計",null,null,null,{"$f":"IF(COUNTBLANK(G13:G14)=2,\"\",SUM(G13:G14))","v":""},{"$f":"IF(COUNTBLANK(H13:H14)=2,\"\",SUM(H13:H14))","v":""},{"$f":"IF(COUNTBLANK(I13:I14)=2,\"\",SUM(I13:I14))","v":""},{"$f":"IF(COUNTBLANK(J13:J14)=2,\"\",SUM(J13:J14))","v":""},{"$f":"IF(COUNTBLANK(K13:K14)=2,\"\",SUM(K13:K14))","v":""},null,"（３）請負事業の売上高",null,null,null,null,null,"そのため、労働者派遣の実績がない場合も入力が必要です。"]
[null,null,null,"③無期雇用派遣労働者",null,null,{"$f":"IF(AND(H13=\"\",J13=\"\"),\"\",SUM(H13,J13))","v":""},null,null,null,null,null,null,null,null,null,null,null,"売上高は、事業所ごとの金額を入力。"]
[null,null,null,"④有期雇用派遣労働者",null,null,{"$f":"IF(AND(H14=\"\",J14=\"\"),\"\",SUM(H14,J14))","v":""},null,null,null,null,null,"※当該事業所で請負事業を行っている場合の請負事業\nに係る売上高について、決算後の金額を記載",null,null,null,null,null,"「④有期雇用派遣労働者」は、日雇派遣労働者及び登録者のうち雇用されている者も含めること。"]
[null,null,null,null,null,null,null,null,null,null,null,null,"（４）海外派遣労働者数（実人数）"]
[null,"⑤日雇派遣労働者",null,null,null,null,{"$f":"IF(AND(H16=\"\",J16=\"\"),\"\",SUM(H16,J16))","v":""},null,null,null,null,null,null,null,null,null,null,null,"Ⅰ（４）～（８）は「報告対象期間」の人数（第１面の８の期間）です。"]
[]
[null,"⑥","登録者　※",null,null,null,null,"－","－","－","－",null,"（５）派遣先に関する事項"]
[null,"※登録制度のある事業主のみ",null,null,null,null,null,null,null,null,null,null,null,"①派遣先事業所数（実数）"]
[]
[null,null,null,null,"②労働者派遣契約の期間別件数（延べ件数）"]
[null,null,null,null,null,null,null,null,null,null,null,null,null,null,"労働者派遣契約がなかった"]
[null,null,null,null,"総件数","１日以下のもの","１日を超え７日以下のもの","７日を超え１月以下のもの","１月を超え２月以下のもの","２月を超え３月以下のもの","３月を超え６月以下のもの","６月を超え１２月以下のもの","１年を超え３年以下のもの","３年を超えるもの"]
[]
[]
["（６）教育訓練（キャリアアップに資するものを除く）の実績"]
[]
[null,"①","労働安全衛生法第59条の規定に基づく安全衛生教育",null,null,null,null,null,null,null,null,"③主な派遣先事業主（取引額上位５社）"]
[null,null,"教育の内容及び当該内容に係る労働安全衛生法又は労働安全衛生規則の該当番号",null,null,null,"教育の方法の別\n１ 座学\n・\n２ 実技","教育の実施主体の別\n１ 事業主・２ 派遣先・３ 教育機関・４ その他　","受講した派遣労働者数","１人当たりの平均実施時間",null,"氏名又は名称",null,"所在地"]
[]
[]
[]
[null,null,null,null,"教育の内容"]
[]
[null,"イ",null,null,null,null,null,null,null,null,null,null,null,null,null,null,null,null,"（６）①安全衛生教育の「労働安全衛生法等の該当番号」は、「安全衛生規則」シート参照。"]
[null,"ロ"]
[null,"ハ"]
[null,"ニ"]
[null,"ホ"]
[]
[null,"②","その他の教育訓練（①及び（11）に係るものを除く）",null,null,null,null,null,null,null,null,"（７）紹介予定派遣に関する事項"]
[null,"訓練の内容",null,null,null,null,null,null,null,null,null,"イ　紹介予定派遣に係る労働者派遣契約の申込人数（人）"]
[null,null,null,null,null,"訓練の方法の別","訓練の実施主体の別","訓練費負担の別","賃金支給の別","１人当たりの平均実施時間",null,null,"ロ　紹介予定派遣により労働者派遣をした労働者数（人）"]
[null,null,null,null,null,null,null,null,null,null,null,null,null,"ハ　紹介予定派遣において職業紹介を実施した労働者数（人）"]
[null,null,null,null,null,null,null,null,null,null,null,null,null,null,"ニ　紹介予定派遣で職業紹介を経て直接雇用に結びついた労働者数（人）"]
[null,null,null,null,null,"１ OJT\n・\n２ OFF-JT","１ 事業主・\n２ 派遣先・\n３ 訓練機関・\n４ その他　","１ 無償（実費負担なし）・２ 無償（実費負担あり）・３ 有償","１ 有給（無給部分なし）・２ 有給（無給部分あり）・３ 無給"]
[null,"イ"]
[null,"ロ"]
[null,"ハ"]
[]
["（８）雇用安定措置（法第30条）の実績"]
[null,"期間",null,null,null,"対象派遣労働者数","第１号の措置（ 派遣先への直接雇用の依頼）を講じた人数",null,"第２号の措置（新たな派遣先の提供）を講じた人数",null,"第３号の措置（派遣元で派遣労働者以外の労働者として無期雇用）を講じた人数","第４号の措置（その他の措置）\nを講じた人数",null,null,"第１号から第４号までのいずれの措置も講じなかった人数","備考"]
[null,null,null,null,null,null,null,"うち、派遣先で雇用された人数",null,"うち、新たな派遣先で就業した人数",null,"教育訓練（雇用を維持したままのものに限る）","紹介予定派遣（※２）","左記以外のその他の措置"]
[null,"計",null,null,null,{"$f":"IF(COUNTBLANK(F55:F60)=6,\"\",SUM(F55:F60))","v":""},{"$f":"IF(COUNTBLANK(G55:G60)=6,\"\",SUM(G55:G60))","v":""},{"$f":"IF(COUNTBLANK(H55:H60)=6,\"\",SUM(H55:H60))","v":""},"","","","","","",""]
[null,null,"３年見込み"]
[null,null,"２年半から３年未満見込み"]
[null,null,"２年から２年半未満見込み"]
[null,null,"１年半から２年未満見込み"]
[null,null,"１年から１年半未満見込み"]
[null,null,"１年未満見込み（※１）"]
[null,"※１",null,null,"「１年未満見込み」については、派遣元での通算雇用期間が１年以上の者（登録中の者を含む）に限る。"]
[null,"※２",null,null,"（７）欄の「イ　紹介予定派遣に係る労働者派遣契約の申込人数（人）」の内数であること。"]

{"sheet":"第３面","index":4,"n_rows":46,"n_cols":13,"rows_kept":46,"cut":false,"hidden":false,"merged":[[5,0,8,2],[5,3,5,5],[5,6,5,10],[9,0,9,2],[6,6,8,6],[6,3,8,3],[7,4,8,4],[7,5,8,5],[7,7,8,7],[7,9,8,9]]}
[null,null,null,null,null,null,null,null,null,null,"（日本産業規格Ａ列４）"]
["様式第11号（第３面）"]
[]
["（９）派遣料金及び派遣労働者の賃金（１日（８時間当たり）の額）に関する事項"]
[null,"①　業務別派遣料金及び派遣労働者の賃金（日雇派遣労働者を除く）"]
[null,null,null,"派遣料金（１日（８時間当たり）の額）",null,null,"派遣労働者の賃金（１日（８時間当たり）の額）",null,null,null,null,null,"１日（８時間当たり）の金額を入力（時間給及び月給の額ではありません）。"]
[null,null,null,"派遣労働者平均",null,null,"派遣労働者平均"]
[null,null,null,null,"無期雇用\n派遣労働者","有期雇用\n派遣労働者",null,"無期雇用\n派遣労働者",null,"有期雇用\n派遣労働者"]
[null,null,null,null,null,null,null,null,"協定対象\n派遣労働者",null,"協定対象\n派遣労働者",null,"協定対象派遣労働者がいたときは、「協定対象派遣労働者」欄にも入力。"]
["全業務平均\n01～99の合計額／記載業務の合計数",null,null,{"$f":"IF(AND(COUNTBLANK(D11:D46)=36,COUNTBLANK('４面'!D9:D46)=35),\"\",IF(SUM(D11:D46,'４面'!D9:D46)=0,0,(SUM(D11:D46,'４面'!D9:D46)/(COUNTIF(D11:D46,\">0\")+COUNTIF('４面'!D9:D46,\">0\")))))","v":""},{"$f":"IF(AND(COUNTBLANK(E11:E46)=36,COUNTBLANK('４面'!E9:E46)=35),\"\",IF(SUM(E11:E46,'４面'!E9:E46)=0,0,(SUM(E11:E46,'４面'!E9:E46)/(COUNTIF(E11:E46,\">0\")+COUNTIF('４面'!E9:E46,\">0\")))))","v":""},{"$f":"IF(AND(COUNTBLANK(F11:F46)=36,COUNTBLANK('４面'!F9:F46)=35),\"\",IF(SUM(F11:F46,'４面'!F9:F46)=0,0,(SUM(F11:F46,'４面'!F9:F46)/(COUNTIF(F11:F46,\">0\")+COUNTIF('４面'!F9:F46,\">0\")))))","v":""},{"$f":"IF(AND(COUNTBLANK(G11:G46)=36,COUNTBLANK('４面'!G9:G46)=35),\"\",IF(SUM(G11:G46,'４面'!G9:G46)=0,0,(SUM(G11:G46,'４面'!G9:G46)/(COUNTIF(G11:G46,\">0\")+COUNTIF('４面'!G9:G46,\">0\")))))","v":""},{"$f":"IF(AND(COUNTBLANK(H11:H46)=36,COUNTBLANK('４面'!H9:H46)=35),\"\",IF(SUM(H11:H46,'４面'!H9:H46)=0,0,(SUM(H11:H46,'４面'!H9:H46)/(COUNTIF(H11:H46,\">0\")+COUNTIF('４面'!H9:H46,\">0\")))))","v":""},{"$f":"IF(AND(COUNTBLANK(I11:I46)=36,COUNTBLANK('４面'!I9:I46)=35),\"\",IF(SUM(I11:I46,'４面'!I9:I46)=0,0,(SUM(I11:I46,'４面'!I9:I46)/(COUNTIF(I11:I46,\">0\")+COUNTIF('４面'!I9:I46,\">0\")))))","v":""},{"$f":"IF(AND(COUNTBLANK(J11:J46)=36,COUNTBLANK('４面'!J9:J46)=35),\"\",IF(SUM(J11:J46,'４面'!J9:J46)=0,0,(SUM(J11:J46,'４面'!J9:J46)/(COUNTIF(J11:J46,\">0\")+COUNTIF('４面'!J9:J46,\">0\")))))","v":""},{"$f":"IF(AND(COUNTBLANK(K11:K46)=36,COUNTBLANK('４面'!K9:K46)=35),\"\",IF(SUM(K11:K46,'４面'!K9:K46)=0,0,(SUM(K11:K46,'４面'!K9:K46)/(COUNTIF(K11:K46,\">0\")+COUNTIF('４面'!K9:K46,\">0\")))))","v":""}]
[null,"01","管理的公務員"]
[null,"02 法人・団体役員","法人・団体役員",null,null,null,null,null,null,null,null,null,"実績がない場合は空欄で（「0」を入力するとエラーとなります）。"]
[null,"03 法人・団体管理職員","法人・団体管理職員"]
[null,"04 その他の管理的職業従事者","その他の管理的職業従事者"]
[null,"05 研究者","研究者"]
[null,"06 農林水産技術者","農林水産技術者"]
[null,"07\n08 ","製造技術者"]
[null,"09","建築・土木・測量技術者"]
[null,"10 情報処理・通信技術者","情報処理・通信技術者"]
[null,"11 情報処理・通信技術者","その他の技術者"]
[null,"12 医師，歯科医師，獣医師，薬剤師","-1\n医師"]
[null,"12","-2\n薬剤師"]
[null,"12","-3\n歯科医師、獣医師"]
[null,13,"-1\n看護師"]
[null,13,"-2\n准看護師"]
[null,13,"-3\n保健師、助産師"]
[null,14,"-1\n診療放射線技師"]
[null,14,"-2\n臨床検査技師"]
[null,14,"-3\nその他の医療技術者"]
[null,"15 その他の保健医療従事者","その他の保健医療従事者"]
[null,"16 社会福祉専門職業従事者","社会福祉専門職業従事者"]
[null,"17 法務従事者","法務従事者"]
[null,"18 経営・金融・保険専門職業従事者","経営・金融・保険専門職業従事者"]
[null,"19 教員","教員"]
[null,"20 宗教家","宗教家"]
[null,"21 著述家，記者，編集者","著述家，記者，編集者"]
[null,"22 美術家，デザイナー，写真家，映像撮影者","美術家，デザイナー，写真家，映像撮影者"]
[null,"23 音楽家，舞台芸術家","音楽家，舞台芸術家"]
[null,"24 その他の専門的職業従事者","その他の専門的職業従事者"]
[null,"25 一般事務従事者","一般事務従事者"]
[null,"26 会計事務従事者","会計事務従事者"]
[null,"27 生産関連事務従事者","生産関連事務従事者"]
[null,"28 営業・販売事務従事者","営業・販売事務従事者"]
[null,"29 外勤事務従事者","外勤事務従事者"]
[null,"30 運輸・郵便事務従事者","運輸・郵便事務従事者"]
[null,"31 事務用機器操作員","事務用機器操作員"]

{"sheet":"４面","index":5,"n_rows":46,"n_cols":13,"rows_kept":46,"cut":false,"hidden":false,"merged":[[4,0,7,2],[4,3,4,5],[4,6,4,10],[5,3,7,3],[5,6,7,6],[6,4,7,4],[6,5,7,5],[6,7,7,7],[6,9,7,9]]}
[null,null,null,null,null,null,null,null,null,null,"（日本産業規格Ａ列４）"]
["様式第11号（第４面）"]
[]
[null,"①　業務別派遣料金及び派遣労働者の賃金（日雇派遣労働者を除く）（続）"]
[null,null,null,"派遣料金（１日（８時間当たり）の額）",null,null,"派遣労働者の賃金（１日（８時間当たり）の額）",null,null,null,null,null,"１日（８時間当たり）の金額を入力（時間給及び月給の額ではありません）。"]
[null,null,null,"派遣労働者平均",null,null,"派遣労働者平均"]
[null,null,null,null,"無期雇用\n派遣労働者","有期雇用\n派遣労働者",null,"無期雇用\n派遣労働者",null,"有期雇用\n派遣労働者"]
[null,null,null,null,null,null,null,null,"協定対象\n派遣労働者",null,"協定対象\n派遣労働者",null,"協定対象派遣労働者がいたときは、「協定対象派遣労働者」欄にも入力。"]
[null,"32 商品販売従事者","商品販売従事者"]
[null,"33 販売類似職業従事者","販売類似職業従事者",null,null,null,null,null,null,null,null,null,"実績がない場合は空欄で（「0」を入力するとエラーとなります）。"]
[null,"34 営業職業従事者","営業職業従事者"]
[null,"35 家庭生活支援サービス職業従事者","家庭生活支援サービス職業従事者"]
[null,"36 介護サービス職業従事者","介護サービス職業従事者"]
[null,"37 保健医療サービス職業従事者","保健医療サービス職業従事者"]
[null,"38 生活衛生サービス職業従事者","生活衛生サービス職業従事者"]
[null,39,"飲食物調理従事者"]
[null,40,"接客・給仕職業従事者"]
[null,41,"居住施設・ビル等管理人"]
[null,42,"その他のサービス職業従事者"]
[null,43,"～45　\n自衛官・司法警察職員等","―","―","―","―","―","―","―","―"]
[null,46,"農業従事者"]
[null,47,"林業従事者"]
[null,48,"漁業従事者"]
[null,"49\n50","生産設備制御・監視従事者"]
[null,51,"機械組立設備制御・監視従事者"]
[null,"52\n53","製品製造・加工処理従事者"]
[null,54,"機械組立従事者"]
[null,55,"機械整備・修理従事者"]
[null,"56\n57","製品検査従事者"]
[null,58,"機械検査従事者"]
[null,59,"生産関連・生産類似作業従事者"]
[null,60,"鉄道運転従事者"]
[null,61,"自動車運転従事者"]
[null,62,"船舶・航空機運転従事者"]
[null,63,"その他の輸送従事者"]
[null,64,"定置・建設機械運転従事者"]
[null,65,"建設躯体工事従事者","―","―","―","―","―","―","―","―"]
[null,66,"建設従事者（建設躯体工事従事者を除く）"]
[null,67,"電気工事従事者"]
[null,68,"土木作業従事者","―","―","―","―","―","―","―","―"]
[null,69,"採掘従事者"]
[null,70,"運搬従事者"]
[null,71,"清掃従事者"]
[null,72,"包装従事者"]
[null,73,"その他の運搬・清掃・包装等従事者"]
[null,99,"分類不能の職業"]

{"sheet":"第５面","index":6,"n_rows":33,"n_cols":7,"rows_kept":33,"cut":false,"hidden":false,"merged":[[4,3,4,4],[4,2,6,2],[4,0,6,1],[7,0,7,1],[5,3,6,3]]}
[null,null,null,null,"（日本産業規格Ａ列４）"]
["様式第11号（第５面）"]
[]
[null,"②　日雇派遣労働者の業務別派遣料金及び賃金"]
[null,null,"日雇派遣労働者の派遣料金\n（1日（８時間当たり）の額）","日雇派遣労働者の賃金\n（１日（８時間当たり）の額）"]
[null,null,null,"日雇派遣労働者"]
[null,null,null,null,"協定対象派遣労働者"]
["全業務平均",null,null,null,null,null,"すべての日雇派遣労働者の平均額を入力（「4-1」から「4-19」の平均額ではありません）。"]
[null,"４－１　情報処理システム開発",null,null,null,null,"協定対象派遣労働者がいたときは、「協定対象派遣労働者」欄にも入力。"]
[null,"４－２　機械設計"]
[null,"４－３　事務用機器操作"]
[null,"４－４　通訳、翻訳、速記"]
[null,"４－５　秘書"]
[null,"４－６　ファイリング"]
[null,"４－７　調査"]
[null,"４－８　財務"]
[null,"４－９　貿易"]
[null,"４－10　デモンストレーション"]
[null,"４－11　添乗"]
[null,"４－12　受付・案内"]
[null,"４－13　研究開発"]
[null,"４－14　事業の実施体制の企画、立案"]
[null,"４－15　書籍等の制作・編集"]
[null,"４－16　広告デザイン"]
[null,"４－17　ＯＡインストラクション"]
[null,"４－18　セールスエンジニアの営業、金融商品の営業"]
[null,"４－19　看護業務"]
[]
["（10）マージン率等の情報提供の状況"]
[null,"提供方法","該当する各欄に「○」を記載"]
[null,"インターネット"]
[null,"書類の備付け"]
[null,"　","　",null,null,null,"「その他」の場合は、(　)内に具体的な方法を入力の上、右欄に「○」を入力。"]

{"sheet":"第６面（フルタイム）","index":7,"n_rows":56,"n_cols":18,"rows_kept":56,"cut":false,"hidden":false,"merged":[[55,12,55,15],[36,13,36,15],[39,13,39,15],[25,4,25,7],[22,15,26,15],[22,12,26,12],[55,1,55,11],[40,1,41,1],[40,2,41,3],[48,1,49,1],[48,2,49,3],[53,1,53,7],[43,1,44,1],[43,2,44,3],[38,2,39,3],[49,13,49,15],[12,9,12,11],[5,9,7,11],[8,9,8,11],[5,12,6,13],[22,1,26,3],[5,4,7,4],[6,5,7,6],[6,7,7,8],[8,7,8,8],[8,1,8,3],[8,5,8,6],[9,5,9,6],[10,2,10,3],[16,5,17,7],[17,8,17,10],[9,2,9,3],[15,2,17,4],[12,7,12,8],[10,5,10,6],[11,5,11,6],[12,5,12,6],[10,7,10,8],[9,7,9,8],[11,7,11,8],[9,9,9,11],[10,9,10,11],[11,9,11,11],[30,2,31,3],[28,1,29,1],[30,1,31,1],[22,4,24,7],[24,8,25,11],[22,8,23,11],[28,2,29,3],[54,1,54,7],[33,2,34,3],[35,1,36,1],[35,2,36,3],[33,1,34,1],[50,1,51,1],[50,2,51,3],[45,1,46,1],[52,1,52,7],[38,1,39,1],[45,2,46,3],[53,12,53,14],[54,12,54,14],[22,13,26,13],[22,14,26,14],[29,13,29,15],[31,13,31,15],[52,12,52,14],[51,13,51,15],[41,13,41,15],[46,13,46,15]]}
[null,null,null,null,null,null,null,null,null,null,null,null,null,null,null,"（日本産業規格Ａ列４）"]
["様式第11号（第６面）"]
[]
[null,"（11）キャリアアップ措置の実績"]
[null,"①","キャリアコンサルティングの窓口担当者の人数"]
[null,null,null,null,"計",null,null,null,null,"うち派遣元責任者\nとの兼任状況",null,null,"キャリアコンサルティングに\n関する職務経験・知見のある者"]
[null,null,null,null,null,"うち社内の者",null,"うち社外の者"]
[null,null,null,null,null,null,null,null,null,null,null,null,"職務経験あり","知見あり"]
[null,"計",null,null,{"$f":"IF(COUNTBLANK(F9:I9)=4,\"\",SUM(F9:I9))","v":""},{"$f":"IF(COUNTBLANK(F10:F11)=2,\"\",SUM(F10:G11))","v":""},null,{"$f":"IF(COUNTBLANK(H10:H11)=2,\"\",SUM(H10:I11))","v":""},null,null,null,null,{"$f":"M11","v":""},{"$f":"N11","v":""}]
[null,null,"キャリアコンサルタント",null,{"$f":"IF(COUNTBLANK(F10:I10)=4,\"\",SUM(F10:I10))","v":""},null,null,null,null,"―",null,null,"―","―"]
[null,null,"上記以外の担当者",null,{"$f":"IF(COUNTBLANK(F11:I11)=4,\"\",SUM(F11:I11))","v":""},{"$f":"IF(COUNTBLANK(F12:F13)=2,\"\",SUM(F12:G13))","v":""},null,{"$f":"IF(COUNTBLANK(H12:H13)=2,\"\",SUM(H12:I13))","v":""},null,"―",null,null,{"$f":"IF(COUNTBLANK(M12:M13)=2,\"\",SUM(M12:M13))","v":""},{"$f":"IF(COUNTBLANK(N12:N13)=2,\"\",SUM(N12:N13))","v":""}]
[null,null,null,"営業職",{"$f":"IF(COUNTBLANK(F12:I12)=4,\"\",SUM(F12:I12))","v":""},null,null,null,null,"―",null,null,null,null,null,null,null,"「営業職」及び「その他」の担当者合計人数は、「職務経験あり」及び「知見あり」の合計人数と一致すること。"]
[null,null,null,"その他",{"$f":"IF(COUNTBLANK(F13:I13)=4,\"\",SUM(F13:I13))","v":""},null,null,null,null,"―"]
[]
[null,"②","キャリアコンサルティングの実施状況"]
[null,null,"全派遣労働者数"]
[null,null,null,null,null,"実施を希望した者の人数"]
[null,null,null,null,null,null,null,null,"実施した者の人数"]
[null,null,"計","うち無期派遣労働者","うち有期派遣労働者","計","うち無期派遣労働者","うち有期派遣労働者","計","うち無期派遣労働者","うち有期派遣労働者"]
[null,null,{"$f":"IF(COUNTBLANK(D20:E20)=2,\"\",SUM(D20:E20))","v":""},null,null,{"$f":"IF(COUNTBLANK(G20:H20)=2,\"\",SUM(G20:H20))","v":""},null,null,{"$f":"IF(COUNTBLANK(J20:K20)=2,\"\",SUM(J20:K20))","v":""}]
[]
[null,"③","キャリアアップに資する教育訓練（① フルタイム(１年以上雇用見込み)､２ 短時間勤務(１年以上雇用見込み)､３ １年未満雇用見込み）"]
[null,"訓練の内容等",null,null,"対象となる派遣労働者\n　\n(上段)　種別\n（１雇入時・２派遣中・３待機中・４入社○年目・５長期的なキャリア形成を念頭に置いた内容の教育訓練の対象となる無期雇用派遣労働者・６その他）",null,null,null,"（上段）実施時間の総計\n（受講者数×教育訓練１コマの時間（複数回実施の場合は､その合計)）",null,null,null,"　訓練の方法の別\n\n１ 計画的なOJT\n２ OFF-JT\n３ OJT\n（計画的なもの以外）","訓練の実施主体の別\n\n１ 事業主\n２ 派遣先\n３ 訓練機関\n４ その他　","  \n   訓練費負担の別\n\n１ 無償\n　（実費負担なし）\n２ 無償\n　（実費負担あり）\n３ 有償","\n    賃金支給の別\n\n１ 有給\n　（無給部分なし）\n２ 有給\n　（無給部分あり）\n３ 無給"]
[]
[null,null,null,null,null,null,null,null,"（下段）受講者の実人数\n（各年に同一の訓練を複数回受講した者は、重複計上しないこと）"]
[null,null,null,null,"(下段)　対象となる派遣労働者数"]
[null,null,null,null,"１年目","２年目","３年目","４年目以降","１年目","２年目","３年目","４年目以降"]
[null,"イ　入職時等基礎的訓練"]
[null,"（イ）"]
[null,null,null,null,null,null,null,null,null,null,null,null,"備考"]
[null,"（ロ）"]
[null,null,null,null,null,null,null,null,null,null,null,null,"備考"]
[null,"ロ　職能別訓練"]
[null,"（イ）"]
[null,null,null,null,null,null,null,null,null,null,null,null,"備考"]
[null,"（ロ）"]
[null,null,null,null,null,null,null,null,null,null,null,null,"備考"]
[null,"ハ　職種転換訓練"]
[null,"（イ）"]
[null,null,null,null,null,null,null,null,null,null,null,null,"備考"]
[null,"（ロ）"]
[null,null,null,null,null,null,null,null,null,null,null,null,"備考"]
[null,"ニ　階層別訓練"]
[null,"（イ）"]
[null,null,null,null,null,null,null,null,null,null,null,null,"備考"]
[null,"（ロ）"]
[null,null,null,null,null,null,null,null,null,null,null,null,"備考"]
[null,"ホ　その他の教育訓練"]
[null,"（イ）"]
[null,null,null,null,null,null,null,null,null,null,null,null,"備考"]
[null,"（ロ）"]
[null,null,null,null,null,null,null,null,null,null,null,null,"備考"]
[null,"各年ごとの厚生労働大臣が定める基準を満たす教育訓練の「実施時間の総計」の合計（ａ）",null,null,null,null,null,null,{"$f":"IF(COUNTBLANK(I29:I52)=24,\"\",SUM(SUMIFS(I29:I52,$O$29:$O$52,1,$P$29:$P$52,1,$M$29:$M$52,{1,2})))","v":""},{"$f":"IF(COUNTBLANK(J29:J52)=24,\"\",SUM(SUMIFS(J29:J52,$O$29:$O$52,1,$P$29:$P$52,1,$M$29:$M$52,{1,2})))","v":""},{"$f":"IF(COUNTBLANK(K29:K52)=24,\"\",SUM(SUMIFS(K29:K52,$O$29:$O$52,1,$P$29:$P$52,1,$M$29:$M$52,{1,2})))","v":""},{"$f":"IF(COUNTBLANK(L29:L52)=24,\"\",SUM(SUMIFS(L29:L52,$O$29:$O$52,1,$P$29:$P$52,1,$M$29:$M$52,{1,2})))","v":""},"１～３年目のａの合計　（ｃ）",null,null,{"$f":"IF(COUNTBLANK(I53:K53)=3,\"\",SUM(I53:K53))","v":""},null,"「計画的なOJT」又は「OFF-JT」、「無償（実費負担なし」、「有給（無給部分なし」を全て満たす教育訓練の実績の合計。"]
[null,"各年ごとの厚生労働大臣が定める基準を満たす教育訓練の受講者の実人数（ｂ）",null,null,null,null,null,null,null,null,null,null,"１～３年目のｂの合計　（ｄ）",null,null,{"$f":"IF(COUNTBLANK(I54:K54)=3,\"\",SUM(I54:K54))","v":""}]
[null,"厚生労働大臣が定める基準を満たす教育訓練について１人当たりの平均実施時間（ａ÷ｂ）",null,null,null,null,null,null,{"$f":"IFERROR(IF(I54=\"\",\"\",ROUNDDOWN(I53/I54,0)),0)","v":""},{"$f":"IFERROR(IF(J54=\"\",\"\",ROUNDDOWN(J53/J54,0)),0)","v":""},{"$f":"IFERROR(IF(K54=\"\",\"\",ROUNDDOWN(K53/K54,0)),0)","v":""},{"$f":"IFERROR(IF(L54=\"\",\"\",ROUNDDOWN(L53/L54,0)),0)","v":""},"１～３年目の厚生労働大臣が定める基準を満たす教育訓練について１人当たりの平均実施時間（ｃ÷ｄ）",null,null,{"$f":"IFERROR(IF(P54=\"\",\"\",ROUNDDOWN(P53/P54,0)),0)","v":""}]
[null,"「キャリアアップに資する教育訓練」実施に当たって支払った賃金額（１人１時間当たり平均）"]

{"sheet":"第６面（短時間）","index":8,"n_rows":56,"n_cols":18,"rows_kept":56,"cut":false,"hidden":false,"merged":[[55,1,55,11],[55,12,55,15],[52,1,52,7],[52,12,52,14],[53,1,53,7],[53,12,53,14],[54,1,54,7],[54,12,54,14],[48,1,49,1],[48,2,49,3],[49,13,49,15],[50,1,51,1],[50,2,51,3],[51,13,51,15],[45,1,46,1],[45,2,46,3],[46,13,46,15],[33,1,34,1],[33,2,34,3],[35,1,36,1],[35,2,36,3],[36,13,36,15],[38,1,39,1],[38,2,39,3],[39,13,39,15],[40,1,41,1],[40,2,41,3],[41,13,41,15],[43,1,44,1],[43,2,44,3],[28,1,29,1],[28,2,29,3],[29,13,29,15],[30,1,31,1],[30,2,31,3],[31,13,31,15],[22,12,26,12],[22,13,26,13],[22,14,26,14],[22,15,26,15],[24,8,25,11],[12,5,12,6],[12,7,12,8],[12,9,12,11],[25,4,25,7],[15,2,17,4],[16,5,17,7],[17,8,17,10],[22,1,26,3],[22,4,24,7],[22,8,23,11],[10,2,10,3],[10,5,10,6],[10,7,10,8],[10,9,10,11],[11,5,11,6],[11,7,11,8],[11,9,11,11],[5,12,6,13],[6,5,7,6],[6,7,7,8],[9,2,9,3],[9,5,9,6],[9,7,9,8],[9,9,9,11],[8,1,8,3],[8,5,8,6],[8,7,8,8],[8,9,8,11],[5,4,7,4],[5,9,7,11]]}
[null,null,null,null,null,null,null,null,null,null,null,null,null,null,null,"（日本産業規格Ａ列４）"]
["様式第11号（第６面）"]
[]
[null,"（11）キャリアアップ措置の実績"]
[null,"①","キャリアコンサルティングの窓口担当者の人数"]
[null,null,null,null,"計",null,null,null,null,"うち派遣元責任者\nとの兼任状況",null,null,"キャリアコンサルティングに\n関する職務経験・知見のある者"]
[null,null,null,null,null,"うち社内の者",null,"うち社外の者"]
[null,null,null,null,null,null,null,null,null,null,null,null,"職務経験あり","知見あり"]
[null,"計",null,null,{"$f":"IF(COUNTBLANK(F9:I9)=4,\"\",SUM(F9:I9))","v":""},{"$f":"IF(COUNTBLANK(F10:F11)=2,\"\",SUM(F10:G11))","v":""},null,{"$f":"IF(COUNTBLANK(H10:H11)=2,\"\",SUM(H10:I11))","v":""},null,null,null,null,{"$f":"M11","v":""},{"$f":"N11","v":""}]
[null,null,"キャリアコンサルタント",null,{"$f":"IF(COUNTBLANK(F10:I10)=4,\"\",SUM(F10:I10))","v":""},null,null,null,null,"―",null,null,"―","―"]
[null,null,"上記以外の担当者",null,{"$f":"IF(COUNTBLANK(F11:I11)=4,\"\",SUM(F11:I11))","v":""},{"$f":"IF(COUNTBLANK(F12:F13)=2,\"\",SUM(F12:G13))","v":""},null,{"$f":"IF(COUNTBLANK(H12:H13)=2,\"\",SUM(H12:I13))","v":""},null,"―",null,null,{"$f":"IF(COUNTBLANK(M12:M13)=2,\"\",SUM(M12:M13))","v":""},{"$f":"IF(COUNTBLANK(N12:N13)=2,\"\",SUM(N12:N13))","v":""}]
[null,null,null,"営業職",{"$f":"IF(COUNTBLANK(F12:I12)=4,\"\",SUM(F12:I12))","v":""},null,null,null,null,"―",null,null,null,null,null,null,null,"（11）①②は、「第６面フルタイム」のシートに入力。"]
[null,null,null,"その他",{"$f":"IF(COUNTBLANK(F13:I13)=4,\"\",SUM(F13:I13))","v":""},null,null,null,null,"―"]
[]
[null,"②","キャリアコンサルティングの実施状況"]
[null,null,"全派遣労働者数"]
[null,null,null,null,null,"実施を希望した者の人数"]
[null,null,null,null,null,null,null,null,"実施した者の人数"]
[null,null,"計","うち無期派遣労働者","うち有期派遣労働者","計","うち無期派遣労働者","うち有期派遣労働者","計","うち無期派遣労働者","うち有期派遣労働者"]
[null,null,{"$f":"IF(COUNTBLANK(D20:E20)=2,\"\",SUM(D20:E20))","v":""},null,null,{"$f":"IF(COUNTBLANK(G20:H20)=2,\"\",SUM(G20:H20))","v":""},null,null,{"$f":"IF(COUNTBLANK(J20:K20)=2,\"\",SUM(J20:K20))","v":""}]
[]
[null,"③","キャリアアップに資する教育訓練（１ フルタイム(１年以上雇用見込み)､② 短時間勤務(１年以上雇用見込み)､３ １年未満雇用見込み）"]
[null,"訓練の内容等",null,null,"対象となる派遣労働者\n　\n(上段)　種別\n（１雇入時・２派遣中・３待機中・４入社○年目・５長期的なキャリア形成を念頭に置いた内容の教育訓練の対象となる無期雇用派遣労働者・６その他）",null,null,null,"（上段）実施時間の総計\n（受講者数×教育訓練１コマの時間（複数回実施の場合は､その合計)）",null,null,null,"　訓練の方法の別\n\n１ 計画的なOJT\n２ OFF-JT\n３ OJT\n（計画的なもの以外）","訓練の実施主体の別\n\n１ 事業主\n２ 派遣先\n３ 訓練機関\n４ その他　","  \n   訓練費負担の別\n\n１ 無償\n　（実費負担なし）\n２ 無償\n　（実費負担あり）\n３ 有償","\n    賃金支給の別\n\n１ 有給\n　（無給部分なし）\n２ 有給\n　（無給部分あり）\n３ 無給"]
[]
[null,null,null,null,null,null,null,null,"（下段）受講者の実人数\n（各年に同一の訓練を複数回受講した者は、重複計上しないこと）"]
[null,null,null,null,"(下段)　対象となる派遣労働者数"]
[null,null,null,null,"１年目","２年目","３年目","４年目以降","１年目","２年目","３年目","４年目以降"]
[null,"イ　入職時等基礎的訓練"]
[null,"（イ）"]
[null,null,null,null,null,null,null,null,null,null,null,null,"備考"]
[null,"（ロ）"]
[null,null,null,null,null,null,null,null,null,null,null,null,"備考"]
[null,"ロ　職能別訓練"]
[null,"（イ）"]
[null,null,null,null,null,null,null,null,null,null,null,null,"備考"]
[null,"（ロ）"]
[null,null,null,null,null,null,null,null,null,null,null,null,"備考"]
[null,"ハ　職種転換訓練"]
[null,"（イ）"]
[null,null,null,null,null,null,null,null,null,null,null,null,"備考"]
[null,"（ロ）"]
[null,null,null,null,null,null,null,null,null,null,null,null,"備考"]
[null,"ニ　階層別訓練"]
[null,"（イ）"]
[null,null,null,null,null,null,null,null,null,null,null,null,"備考"]
[null,"（ロ）"]
[null,null,null,null,null,null,null,null,null,null,null,null,"備考"]
[null,"ホ　その他の教育訓練"]
[null,"（イ）"]
[null,null,null,null,null,null,null,null,null,null,null,null,"備考"]
[null,"（ロ）"]
[null,null,null,null,null,null,null,null,null,null,null,null,"備考"]
[null,"各年ごとの厚生労働大臣が定める基準を満たす教育訓練の「実施時間の総計」の合計（ａ）",null,null,null,null,null,null,{"$f":"IF(COUNTBLANK(I29:I52)=24,\"\",SUM(SUMIFS(I29:I52,$O$29:$O$52,1,$P$29:$P$52,1,$M$29:$M$52,{1,2})))","v":""},{"$f":"IF(COUNTBLANK(J29:J52)=24,\"\",SUM(SUMIFS(J29:J52,$O$29:$O$52,1,$P$29:$P$52,1,$M$29:$M$52,{1,2})))","v":""},{"$f":"IF(COUNTBLANK(K29:K52)=24,\"\",SUM(SUMIFS(K29:K52,$O$29:$O$52,1,$P$29:$P$52,1,$M$29:$M$52,{1,2})))","v":""},{"$f":"IF(COUNTBLANK(L29:L52)=24,\"\",SUM(SUMIFS(L29:L52,$O$29:$O$52,1,$P$29:$P$52,1,$M$29:$M$52,{1,2})))","v":""},"１～３年目のａの合計　（ｃ）",null,null,{"$f":"IF(COUNTBLANK(I53:K53)=3,\"\",SUM(I53:K53))","v":""},null,"「計画的なOJT」又は「OFF-JT」、「無償（実費負担なし」、「有給（無給部分なし」を全て満たす教育訓練の実績の合計。"]
[null,"各年ごとの厚生労働大臣が定める基準を満たす教育訓練の受講者の実人数（ｂ）",null,null,null,null,null,null,null,null,null,null,"１～３年目のｂの合計　（ｄ）",null,null,{"$f":"IF(COUNTBLANK(I54:K54)=3,\"\",SUM(I54:K54))","v":""}]
[null,"厚生労働大臣が定める基準を満たす教育訓練について１人当たりの平均実施時間（ａ÷ｂ）",null,null,null,null,null,null,{"$f":"IFERROR(IF(I54=\"\",\"\",ROUNDDOWN(I53/I54,0)),0)","v":""},{"$f":"IFERROR(IF(J54=\"\",\"\",ROUNDDOWN(J53/J54,0)),0)","v":""},{"$f":"IFERROR(IF(K54=\"\",\"\",ROUNDDOWN(K53/K54,0)),0)","v":""},{"$f":"IFERROR(IF(L54=\"\",\"\",ROUNDDOWN(L53/L54,0)),0)","v":""},"１～３年目の厚生労働大臣が定める基準を満たす教育訓練について１人当たりの平均実施時間（ｃ÷ｄ）",null,null,{"$f":"IFERROR(IF(P54=\"\",\"\",ROUNDDOWN(P53/P54,0)),0)","v":""}]
[null,"「キャリアアップに資する教育訓練」実施に当たって支払った賃金額（１人１時間当たり平均）"]

{"sheet":"第６面（１年未満）","index":9,"n_rows":56,"n_cols":18,"rows_kept":56,"cut":false,"hidden":false,"merged":[[55,1,55,11],[55,12,55,15],[52,1,52,7],[52,12,52,14],[53,1,53,7],[53,12,53,14],[54,1,54,7],[54,12,54,14],[48,1,49,1],[48,2,49,3],[49,13,49,15],[50,1,51,1],[50,2,51,3],[51,13,51,15],[45,1,46,1],[45,2,46,3],[46,13,46,15],[33,1,34,1],[33,2,34,3],[35,1,36,1],[35,2,36,3],[36,13,36,15],[38,1,39,1],[38,2,39,3],[39,13,39,15],[40,1,41,1],[40,2,41,3],[41,13,41,15],[43,1,44,1],[43,2,44,3],[28,1,29,1],[28,2,29,3],[29,13,29,15],[30,1,31,1],[30,2,31,3],[31,13,31,15],[22,12,26,12],[22,13,26,13],[22,14,26,14],[22,15,26,15],[24,8,25,11],[12,5,12,6],[12,7,12,8],[12,9,12,11],[25,4,25,7],[15,2,17,4],[16,5,17,7],[17,8,17,10],[22,1,26,3],[22,4,24,7],[22,8,23,11],[10,2,10,3],[10,5,10,6],[10,7,10,8],[10,9,10,11],[11,5,11,6],[11,7,11,8],[11,9,11,11],[5,12,6,13],[6,5,7,6],[6,7,7,8],[9,2,9,3],[9,5,9,6],[9,7,9,8],[9,9,9,11],[8,1,8,3],[8,5,8,6],[8,7,8,8],[8,9,8,11],[5,4,7,4],[5,9,7,11]]}
[null,null,null,null,null,null,null,null,null,null,null,null,null,null,null,"（日本産業規格Ａ列４）"]
["様式第11号（第６面）"]
[]
[null,"（11）キャリアアップ措置の実績"]
[null,"①","キャリアコンサルティングの窓口担当者の人数"]
[null,null,null,null,"計",null,null,null,null,"うち派遣元責任者\nとの兼任状況",null,null,"キャリアコンサルティングに\n関する職務経験・知見のある者"]
[null,null,null,null,null,"うち社内の者",null,"うち社外の者"]
[null,null,null,null,null,null,null,null,null,null,null,null,"職務経験あり","知見あり"]
[null,"計",null,null,{"$f":"IF(COUNTBLANK(F9:I9)=4,\"\",SUM(F9:I9))","v":""},{"$f":"IF(COUNTBLANK(F10:F11)=2,\"\",SUM(F10:G11))","v":""},null,{"$f":"IF(COUNTBLANK(H10:H11)=2,\"\",SUM(H10:I11))","v":""},null,null,null,null,{"$f":"M11","v":""},{"$f":"N11","v":""}]
[null,null,"キャリアコンサルタント",null,{"$f":"IF(COUNTBLANK(F10:I10)=4,\"\",SUM(F10:I10))","v":""},null,null,null,null,"―",null,null,"―","―"]
[null,null,"上記以外の担当者",null,{"$f":"IF(COUNTBLANK(F11:I11)=4,\"\",SUM(F11:I11))","v":""},{"$f":"IF(COUNTBLANK(F12:F13)=2,\"\",SUM(F12:G13))","v":""},null,{"$f":"IF(COUNTBLANK(H12:H13)=2,\"\",SUM(H12:I13))","v":""},null,"―",null,null,{"$f":"IF(COUNTBLANK(M12:M13)=2,\"\",SUM(M12:M13))","v":""},{"$f":"IF(COUNTBLANK(N12:N13)=2,\"\",SUM(N12:N13))","v":""}]
[null,null,null,"営業職",{"$f":"IF(COUNTBLANK(F12:I12)=4,\"\",SUM(F12:I12))","v":""},null,null,null,null,"―",null,null,null,null,null,null,null,"（11）①②は、「第６面フルタイム」のシートに入力。"]
[null,null,null,"その他",{"$f":"IF(COUNTBLANK(F13:I13)=4,\"\",SUM(F13:I13))","v":""},null,null,null,null,"―"]
[]
[null,"②","キャリアコンサルティングの実施状況"]
[null,null,"全派遣労働者数"]
[null,null,null,null,null,"実施を希望した者の人数"]
[null,null,null,null,null,null,null,null,"実施した者の人数"]
[null,null,"計","うち無期派遣労働者","うち有期派遣労働者","計","うち無期派遣労働者","うち有期派遣労働者","計","うち無期派遣労働者","うち有期派遣労働者"]
[null,null,{"$f":"IF(COUNTBLANK(D20:E20)=2,\"\",SUM(D20:E20))","v":""},null,null,{"$f":"IF(COUNTBLANK(G20:H20)=2,\"\",SUM(G20:H20))","v":""},null,null,{"$f":"IF(COUNTBLANK(J20:K20)=2,\"\",SUM(J20:K20))","v":""}]
[]
[null,"③","キャリアアップに資する教育訓練（１ フルタイム(１年以上雇用見込み)､２ 短時間勤務(１年以上雇用見込み)､③ １年未満雇用見込み）"]
[null,"訓練の内容等",null,null,"対象となる派遣労働者\n　\n(上段)　種別\n（１雇入時・２派遣中・３待機中・４入社○年目・５長期的なキャリア形成を念頭に置いた内容の教育訓練の対象となる無期雇用派遣労働者・６その他）",null,null,null,"（上段）実施時間の総計\n（受講者数×教育訓練１コマの時間（複数回実施の場合は､その合計)）",null,null,null,"　訓練の方法の別\n\n１ 計画的なOJT\n２ OFF-JT\n３ OJT\n（計画的なもの以外）","訓練の実施主体の別\n\n１ 事業主\n２ 派遣先\n３ 訓練機関\n４ その他　","  \n   訓練費負担の別\n\n１ 無償\n　（実費負担なし）\n２ 無償\n　（実費負担あり）\n３ 有償","\n    賃金支給の別\n\n１ 有給\n　（無給部分なし）\n２ 有給\n　（無給部分あり）\n３ 無給"]
[]
[null,null,null,null,null,null,null,null,"（下段）受講者の実人数\n（各年に同一の訓練を複数回受講した者は、重複計上しないこと）"]
[null,null,null,null,"(下段)　対象となる派遣労働者数"]
[null,null,null,null,"１年目","２年目","３年目","４年目以降","１年目","２年目","３年目","４年目以降"]
[null,"イ　入職時等基礎的訓練"]
[null,"（イ）"]
[null,null,null,null,null,null,null,null,null,null,null,null,"備考"]
[null,"（ロ）"]
[null,null,null,null,null,null,null,null,null,null,null,null,"備考"]
[null,"ロ　職能別訓練"]
[null,"（イ）"]
[null,null,null,null,null,null,null,null,null,null,null,null,"備考"]
[null,"（ロ）"]
[null,null,null,null,null,null,null,null,null,null,null,null,"備考"]
[null,"ハ　職種転換訓練"]
[null,"（イ）"]
[null,null,null,null,null,null,null,null,null,null,null,null,"備考"]
[null,"（ロ）"]
[null,null,null,null,null,null,null,null,null,null,null,null,"備考"]
[null,"ニ　階層別訓練"]
[null,"（イ）"]
[null,null,null,null,null,null,null,null,null,null,null,null,"備考"]
[null,"（ロ）"]
[null,null,null,null,null,null,null,null,null,null,null,null,"備考"]
[null,"ホ　その他の教育訓練"]
[null,"（イ）"]
[null,null,null,null,null,null,null,null,null,null,null,null,"備考"]
[null,"（ロ）"]
[null,null,null,null,null,null,null,null,null,null,null,null,"備考"]
[null,"各年ごとの厚生労働大臣が定める基準を満たす教育訓練の「実施時間の総計」の合計（ａ）",null,null,null,null,null,null,{"$f":"IF(COUNTBLANK(I29:I52)=24,\"\",SUM(SUMIFS(I29:I52,$O$29:$O$52,1,$P$29:$P$52,1,$M$29:$M$52,{1,2})))","v":""},{"$f":"IF(COUNTBLANK(J29:J52)=24,\"\",SUM(SUMIFS(J29:J52,$O$29:$O$52,1,$P$29:$P$52,1,$M$29:$M$52,{1,2})))","v":""},{"$f":"IF(COUNTBLANK(K29:K52)=24,\"\",SUM(SUMIFS(K29:K52,$O$29:$O$52,1,$P$29:$P$52,1,$M$29:$M$52,{1,2})))","v":""},{"$f":"IF(COUNTBLANK(L29:L52)=24,\"\",SUM(SUMIFS(L29:L52,$O$29:$O$52,1,$P$29:$P$52,1,$M$29:$M$52,{1,2})))","v":""},"１～３年目のａの合計　（ｃ）",null,null,{"$f":"IF(COUNTBLANK(I53:K53)=3,\"\",SUM(I53:K53))","v":""},null,"「計画的なOJT」又は「OFF-JT」、「無償（実費負担なし」、「有給（無給部分なし」を全て満たす教育訓練の実績の合計。"]
[null,"各年ごとの厚生労働大臣が定める基準を満たす教育訓練の受講者の実人数（ｂ）",null,null,null,null,null,null,null,null,null,null,"１～３年目のｂの合計　（ｄ）",null,null,{"$f":"IF(COUNTBLANK(I54:K54)=3,\"\",SUM(I54:K54))","v":""}]
[null,"厚生労働大臣が定める基準を満たす教育訓練について１人当たりの平均実施時間（ａ÷ｂ）",null,null,null,null,null,null,{"$f":"IFERROR(IF(I54=\"\",\"\",ROUNDDOWN(I53/I54,0)),0)","v":""},{"$f":"IFERROR(IF(J54=\"\",\"\",ROUNDDOWN(J53/J54,0)),0)","v":""},{"$f":"IFERROR(IF(K54=\"\",\"\",ROUNDDOWN(K53/K54,0)),0)","v":""},{"$f":"IFERROR(IF(L54=\"\",\"\",ROUNDDOWN(L53/L54,0)),0)","v":""},"１～３年目の厚生労働大臣が定める基準を満たす教育訓練について１人当たりの平均実施時間（ｃ÷ｄ）",null,null,{"$f":"IFERROR(IF(P54=\"\",\"\",ROUNDDOWN(P53/P54,0)),0)","v":""}]
[null,"「キャリアアップに資する教育訓練」実施に当たって支払った賃金額（１人１時間当たり平均）"]

{"sheet":"第７面","index":10,"n_rows":52,"n_cols":14,"rows_kept":52,"cut":false,"hidden":false,"merged":[[27,2,27,4],[24,2,24,4],[29,2,29,4],[16,2,16,4],[20,2,20,4],[21,2,21,4],[23,2,23,4],[25,2,25,4],[14,6,14,7],[14,8,14,9],[13,2,15,4],[13,5,15,5],[44,2,44,4],[43,2,43,4],[28,2,28,4],[34,2,34,4],[38,2,38,4],[36,2,36,4],[41,2,41,4],[42,2,42,4],[39,2,39,4],[40,2,40,4],[19,2,19,4],[33,2,33,4],[37,2,37,4],[22,2,22,4],[51,2,51,4],[17,2,17,4],[18,2,18,4],[45,2,45,4],[47,2,47,4],[49,2,49,4],[46,2,46,4],[50,2,50,4],[48,2,48,4],[30,2,30,4],[35,2,35,4],[26,2,26,4],[32,2,32,4],[31,2,31,4],[11,13,12,13],[8,6,8,7],[8,8,8,9],[8,10,8,11],[6,2,9,3],[10,2,10,3],[7,4,7,7],[7,8,7,11],[8,4,8,5]]}
[null,null,null,null,null,null,null,null,null,null,null,"（日本産業規格Ａ列４）"]
["様式第11号（第７面）"]
["Ⅱ　６月１日現在の状況報告",null,null,null,null,null,null,null,null,null,null,null,null,"令和６年６月１日現在において派遣していた派遣労働者の実人数等を入力。"]
[]
["１　派遣労働者の実人数"]
[null,"①　派遣労働者（日雇派遣労働者を除く）の実人数"]
[null,null,"派遣労働者計"]
[null,null,null,null,"うち、通算雇用期間が１年以上の派遣労働者",null,null,null,"うち、通算雇用期間が１年未満の派遣労働者"]
[null,null,null,null,"無期雇用派遣労働者",null,"有期雇用派遣労働者",null,"無期雇用派遣労働者",null,"有期雇用派遣労働者"]
[null,null,null,null,null,"協定対象\n派遣労働者",null,"協定対象\n派遣労働者",null,"協定対象\n派遣労働者",null,"協定対象\n派遣労働者"]
[null,null,{"$f":"IF(COUNTBLANK(E11:L11)=8,\"\",SUM(E11,G11,I11,K11))","v":""},null,null,null,null,null,null,null,null,null,null,"①の各欄の合計は、②の合計と一致すること。"]
[null,null,null,null,null,null,null,null,null,null,null,null,null,"　（例）①の「通算雇用期間が１年以上の派遣労働者-無期雇用派遣労働者」と\n　　　　　　　「通算雇用期間が１年未満の派遣労働者-無期雇用派遣労働者」の合計人数が、\n　　　　②の無期雇用派遣労働者欄の合計（タテ計）と一致すること。"]
[null,"②　業務別派遣労働者（日雇派遣労働者を除く）の実人数（①の内数）"]
[null,null,null,null,null,"計"]
[null,null,null,null,null,null,"無期雇用派遣労働者",null,"有期雇用派遣労働者",null,null,null,null,"令和６年６月１日現在において派遣していた派遣労働者のうち、労使協定対象派遣労働者がいたときは、\nそれぞれの職種の「協定対象派遣労働者」の欄に、内数を入力すること。"]
[null,null,null,null,null,null,null,"協定対象\n派遣労働者",null,"協定対象\n派遣労働者"]
[null,null,"01 管理的公務員",null,null,{"$f":"IF(COUNTBLANK(G17:J17)=4,\"\",SUM(G17,I17))","v":""}]
[null,null,"02 法人・団体役員",null,null,""]
[null,null,"03 法人・団体管理職員",null,null,""]
[null,null,"04 その他の管理的職業従事者",null,null,""]
[null,null,"05 研究者",null,null,""]
[null,null,"06 農林水産技術者",null,null,""]
[null,null,"07・08 製造技術者",null,null,""]
[null,null,"09 建築・土木・測量技術者",null,null,""]
[null,null,"10 情報処理・通信技術者",null,null,""]
[null,null,"11 その他の技術者",null,null,""]
[null,null,"12 -1\n   医師",null,null,""]
[null,null,"12 -2\n   薬剤師",null,null,""]
[null,null,"12 -3\n   歯科医師、獣医師",null,null,""]
[null,null,"13 -1\n   看護師",null,null,""]
[null,null,"13 -2\n   准看護師",null,null,""]
[null,null,"13 -3\n   保健師、助産師",null,null,""]
[null,null,"14 -1\n   診療放射線技師",null,null,""]
[null,null,"14 -2\n   臨床検査技師",null,null,""]
[null,null,"14 -3\n   その他の医療技術者",null,null,""]
[null,null,"15 その他の保健医療従事者",null,null,""]
[null,null,"16 社会福祉専門職業従事者",null,null,""]
[null,null,"17 法務従事者",null,null,""]
[null,null,"18 経営・金融・保険専門職業従事者",null,null,""]
[null,null,"19 教員",null,null,""]
[null,null,"20 宗教家",null,null,""]
[null,null,"21 著述家，記者，編集者",null,null,""]
[null,null,"22 美術家，デザイナー，写真家，映像撮影者",null,null,""]
[null,null,"23 音楽家，舞台芸術家",null,null,""]
[null,null,"24 その他の専門的職業従事者",null,null,""]
[null,null,"25 一般事務従事者",null,null,""]
[null,null,"26 会計事務従事者",null,null,""]
[null,null,"27 生産関連事務従事者",null,null,""]
[null,null,"28 営業・販売事務従事者",null,null,""]
[null,null,"29 外勤事務従事者",null,null,""]
[null,null,"30 運輸・郵便事務従事者",null,null,""]
[null,null,"31 事務用機器操作員",null,null,""]

{"sheet":"第８面","index":11,"n_rows":59,"n_cols":14,"rows_kept":59,"cut":false,"hidden":false,"merged":[[57,2,57,4],[57,6,57,7],[57,8,57,9],[58,2,58,4],[58,6,58,7],[58,8,58,9],[55,2,55,4],[55,6,55,7],[55,8,55,9],[56,2,56,4],[56,6,56,7],[56,8,56,9],[54,2,54,4],[54,6,54,7],[54,8,54,9],[39,2,39,4],[40,2,40,4],[41,2,41,4],[42,2,42,4],[44,2,44,4],[47,2,49,3],[48,4,48,5],[48,6,48,7],[50,2,50,3],[53,2,53,4],[53,6,53,7],[53,8,53,9],[43,2,43,4],[38,2,38,4],[27,2,27,4],[28,2,28,4],[29,2,29,4],[30,2,30,4],[31,2,31,4],[32,2,32,4],[33,2,33,4],[34,2,34,4],[35,2,35,4],[36,2,36,4],[37,2,37,4],[26,2,26,4],[16,2,16,4],[17,2,17,4],[18,2,18,4],[19,2,19,4],[20,2,20,4],[21,2,21,4],[22,2,22,4],[23,2,23,4],[24,2,24,4],[25,2,25,4],[15,2,15,4],[4,2,6,4],[4,5,6,5],[5,6,5,7],[5,8,5,9],[7,2,7,4],[14,2,14,4],[11,2,11,4],[12,2,12,4],[13,2,13,4],[8,2,8,4],[9,2,9,4],[10,2,10,4]]}
[null,null,null,null,null,null,null,null,null,null,null,"（日本産業規格Ａ列４）"]
["様式第11号（第８面）"]
[]
[null,"②　業務別派遣労働者（日雇派遣労働者を除く）の実人数（続）"]
[null,null,null,null,null,"計"]
[null,null,null,null,null,null,"無期雇用派遣労働者",null,"有期雇用派遣労働者",null,null,null,null,"令和６年６月１日現在において派遣していた派遣労働者のうち、労使協定対象派遣労働者がいたときは、\nそれぞれの職種の「協定対象派遣労働者」の欄に、内数を入力すること。"]
[null,null,null,null,null,null,null,"協定対象\n派遣労働者",null,"協定対象\n派遣労働者"]
[null,null,"32 商品販売従事者",null,null,{"$f":"IF(COUNTBLANK(G8:J8)=4,\"\",SUM(G8,I8))","v":""}]
[null,null,"33 販売類似職業従事者",null,null,""]
[null,null,"34 営業職業従事者",null,null,""]
[null,null,"35 家庭生活支援サービス職業従事者",null,null,""]
[null,null,"36 介護サービス職業従事者",null,null,{"$f":"IF(COUNTBLANK(G12:J12)=4,\"\",SUM(G12,I12))","v":""}]
[null,null,"37 保健医療サービス職業従事者",null,null,""]
[null,null,"38 生活衛生サービス職業従事者",null,null,""]
[null,null,"39 飲食物調理従事者",null,null,""]
[null,null,"40 接客・給仕職業従事者",null,null,""]
[null,null,"41 居住施設・ビル等管理人",null,null,""]
[null,null,"42 その他のサービス職業従事者",null,null,""]
[null,null,"43～45　自衛官・司法警察職員等",null,null,"―","―","―","―","―"]
[null,null,"46 農業従事者",null,null,{"$f":"IF(COUNTBLANK(G20:J20)=4,\"\",SUM(G20,I20))","v":""}]
[null,null,"47 林業従事者",null,null,""]
[null,null,"48 漁業従事者",null,null,""]
[null,null,"49・50 生産設備制御・監視従事者",null,null,""]
[null,null,"51 機械組立設備制御・監視従事者",null,null,""]
[null,null,"52・53 製品製造・加工処理従事者",null,null,""]
[null,null,"54 機械組立従事者",null,null,""]
[null,null,"55 機械整備・修理従事者",null,null,""]
[null,null,"56・57 製品検査従事者",null,null,""]
[null,null,"58 機械検査従事者",null,null,""]
[null,null,"59 生産関連・生産類似作業従事者",null,null,""]
[null,null,"60 鉄道運転従事者",null,null,""]
[null,null,"61 自動車運転従事者",null,null,""]
[null,null,"62 船舶・航空機運転従事者",null,null,""]
[null,null,"63 その他の輸送従事者",null,null,""]
[null,null,"64 定置・建設機械運転従事者",null,null,""]
[null,null,"65 建設躯体工事従事者",null,null,"―","―","―","―","―"]
[null,null,"66 建設従事者（建設躯体工事従事者を除く）",null,null,{"$f":"IF(COUNTBLANK(G37:J37)=4,\"\",SUM(G37,I37))","v":""}]
[null,null,"67 電気工事従事者",null,null,""]
[null,null,"68 土木作業従事者",null,null,"―","―","―","―","―"]
[null,null,"69 採掘従事者",null,null,{"$f":"IF(COUNTBLANK(G40:J40)=4,\"\",SUM(G40,I40))","v":""}]
[null,null,"70 運搬従事者",null,null,""]
[null,null,"71 清掃従事者",null,null,""]
[null,null,"72 包装従事者",null,null,""]
[null,null,"73 その他の運搬・清掃・包装等従事者",null,null,{"$f":"IF(COUNTBLANK(G44:J44)=4,\"\",SUM(G44,I44))","v":""}]
[null,null,"99 分類不能の職業",null,null,""]
[]
[null,"③　特定製造業務従事者の実人数（①の内数）"]
[null,null,"特定製造業従事者　計"]
[null,null,null,null,"無期雇用派遣労働者",null,"有期雇用派遣労働者"]
[null,null,null,null,null,"協定対象\n派遣労働者",null,"協定対象\n派遣労働者"]
[null,null,{"$f":"IF(COUNTBLANK(E51:H51)=4,\"\",SUM(E51,G51))","v":""}]
[]
[null,"④　期間制限の対象外となる労働者派遣に係る派遣労働者（日雇派遣労働者を除く）の実人数（①の内数）"]
[null,null,null,null,null,"計","無期雇用派遣労働者",null,"有期雇用派遣労働者"]
[null,null,"法第40条の２第１項第２号(高齢者)",null,null,{"$f":"IF(COUNTBLANK(G55:I55)=3,\"\",SUM(G55,I55))","v":""}]
[null,null,"法第40条の２第１項第３号イ(有期プロジェクト業務)",null,null,{"$f":"IF(COUNTBLANK(G56:I56)=3,\"\",SUM(G56,I56))","v":""}]
[null,null,"法第40条の２第１項第３号ロ(日数限定業務)",null,null,{"$f":"IF(COUNTBLANK(G57:I57)=3,\"\",SUM(G57,I57))","v":""}]
[null,null,"法第40条の２第１項第４号(育児休業等取得者の代替)",null,null,{"$f":"IF(COUNTBLANK(G58:I58)=3,\"\",SUM(G58,I58))","v":""}]
[null,null,"法第40条の２第１項第５号(介護休業取得者の代替)",null,null,{"$f":"IF(COUNTBLANK(G59:I59)=3,\"\",SUM(G59,I59))","v":""}]

{"sheet":"第９面","index":12,"n_rows":50,"n_cols":17,"rows_kept":50,"cut":false,"hidden":false,"merged":[[47,2,47,4],[49,2,49,4],[48,2,48,4],[37,2,37,5],[38,2,38,5],[39,2,39,5],[40,2,40,5],[45,5,45,6],[45,7,45,8],[14,2,15,5],[14,6,14,7],[30,2,30,5],[31,2,31,5],[32,2,32,5],[34,2,34,5],[22,2,22,5],[23,2,23,5],[29,2,29,5],[17,2,17,5],[18,2,18,5],[19,2,19,5],[28,2,28,5],[27,2,27,5],[33,2,33,5],[5,7,5,8],[5,9,5,10],[5,11,5,12],[5,13,5,14],[4,2,6,4],[5,5,5,6],[25,2,25,5],[26,2,26,5],[16,2,16,5],[7,2,7,4],[9,9,9,10],[20,2,20,5],[21,2,21,5],[24,2,24,5]]}
[null,null,null,null,null,null,null,null,null,null,null,null,null,null,"（日本産業規格Ａ列４）"]
["様式第11号（第９面）"]
[null,null,null,null,null,null,null,null,null,null,null,null,null,null,null,null,"実際に令和６年６月１日に派遣した日雇労働者の実人数を記入"]
[null,"⑤　日雇派遣労働者の実人数"]
[null,null,"\n日雇派遣労働者　計"]
[null,null,null,null,null,"ⅰ～ⅳに該当しない者",null,"ⅰ　高齢者",null,"ⅱ　昼間学生",null,"ⅲ　副業として従事する者",null,"ⅳ　主たる生計者でない者",null,null,"令和６年６月１日現在において派遣していた派遣労働者のうち、労使協定対象派遣労働者がいたときは、\nそれぞれの「協定対象派遣労働者」の欄に、内数を入力すること。"]
[null,null,null,null,null,null,"協定対象\n派遣労働者",null,"協定対象\n派遣労働者",null,"協定対象\n派遣労働者",null,"協定対象\n派遣労働者",null,"協定対象\n派遣労働者"]
[null,null,{"$f":"IF(COUNTBLANK(F8:O8)=10,\"\",SUM(F8,H8,J8,L8,N8))","v":""}]
[]
[null,"⑥　特定製造業務従事者である日雇派遣労働者の実人数の内数（⑤ⅰ～ⅳの合計の内数）",null,null,null,null,null,null,null,"日雇派遣労働者",null,null,null,null,null,null,"令和６年６月１日現在において派遣していた派遣労働者のうち、労使協定対象派遣労働者がいたときは、\n「協定対象派遣労働者」の欄に、内数を入力すること。"]
[null,null,null,null,null,null,null,null,null,null,"協定対象\n派遣労働者"]
[]
[]
[null,"⑦　日雇派遣労働者の業務別実人数（⑤の内数）"]
[null,null,null,null,null,null,"日雇派遣労働者",null,null,null,null,null,null,null,null,null,"令和６年６月１日現在において派遣していた派遣労働者のうち、労使協定対象派遣労働者がいたときは、\nそれぞれの職種の「協定対象派遣労働者」の欄に、内数を入力すること。"]
[null,null,null,null,null,null,null,"協定対象\n派遣労働者"]
[null,null,"４－１情報処理システム開発"]
[null,null,"４－２機械設計"]
[null,null,"４－３事務用機器操作"]
[null,null,"４－４通訳、翻訳、速記"]
[null,null,"４－５秘書"]
[null,null,"４－６ファイリング"]
[null,null,"４－７調査"]
[null,null,"４－８財務"]
[null,null,"４－９貿易"]
[null,null,"４－10デモンストレーション"]
[null,null,"４－11添乗"]
[null,null,"４－12受付・案内"]
[null,null,"４－13研究開発"]
[null,null,"４－14事業の実施体制の企画、立案"]
[null,null,"４－15書籍等の制作・編集"]
[null,null,"４－16広告デザイン"]
[null,null,"４－17ＯＡインストラクション"]
[null,null,"４－18セールスエンジニアの営業、金融商品の営業"]
[null,null,"４－19看護業務"]
[]
[null,"⑧　日雇派遣労働者のうち期間制限の対象外となる業務における派遣労働者の実人数（⑤の内数）"]
[null,null,"法第40条の２第１項第３号イ(有期プロジェクト業務)"]
[null,null,"法第40条の２第１項第３号ロ(日数限定業務)"]
[null,null,"法第40条の２第１項第４号(育児休業等取得者の代替業務)"]
[null,null,"法第40条の２第１項第５号(介護休業取得者の代替業務)"]
[]
[null,"２　過去１年以内に労働者派遣されたことのある登録者（雇用されている者を含む。）の数"]
[]
[null,"３　雇用保険及び社会保険の派遣労働者への適用状況"]
[null,null,null,null,null,"雇用見込みが１年以上の労働者",null,"雇用見込みが１年未満の労働者"]
[null,null,null,null,null,"無期雇用\n派遣労働者","有期雇用\n派遣労働者","無期雇用\n派遣労働者","有期雇用\n派遣労働者"]
[null,null,"雇用保険",null,null,null,null,"―"]
[null,null,"健康保険",null,null,null,null,"―"]
[null,null,"厚生年金保険",null,null,null,null,"―"]

{"sheet":"産業分類番号","index":13,"n_rows":1487,"n_cols":4,"rows_kept":1487,"cut":false,"hidden":false,"merged":[[113,0,167,0],[168,0,762,0],[763,0,779,0],[780,0,824,0],[0,0,0,3],[1,0,1,3],[27,0,59,0],[60,0,80,0],[81,0,112,0],[825,0,886,0],[887,0,1088,0],[1089,0,1160,0],[1161,0,1188,0],[1189,0,1230,0],[1415,0,1480,0],[1481,0,1485,0],[1231,0,1259,0],[1260,0,1328,0],[1329,0,1363,0],[1364,0,1404,0],[1405,0,1414,0]]}
["日本標準産業分類（総務省）"]
["https://www.soumu.go.jp/toukei_toukatsu/index/seido/sangyo/02toukatsu01_03000044.html"]
[]
["大分類","分類番号","分類番号","項目名"]
[]
[null,null,"～0299","農業，林業"]
[null,null,"～0421","B.漁業"]
[null,null,"～0599","C.鉱業，採石業，砂利採取業"]
[null,null,"～0894","D.建設業"]
[null,null,"～3299","E.製造業"]
[null,null,"～3632","F.電気・ガス・熱供給・水道業"]
[null,null,"～4169","G.情報通信業"]
[null,null,"～4911","H.運輸業，郵便業"]
[null,null,"～6199","I.卸売業，小売業"]
[null,null,"～6759","J.金融業，保険業"]
[null,null,"～7099","K.不動産業，物品賃貸業"]
[null,null,"～7499","L.学術研究，専門・技術サービス業"]
[null,null,"～7721","M.宿泊業，飲食サービス業"]
[null,null,"～8099","N.生活関連サービス業，娯楽業"]
[null,null,"～8299","O.教育，学習支援業"]
[null,null,"～8599","P.医療，福祉"]
[null,null,"～8721","Q.複合サービス事業"]
[null,null,"～9699","R.サービス業（他に分類されないもの）"]
[null,null,"～9821","S.公務（他に分類されるものを除く）"]
[null,null,"～9999","T.分類不能の産業"]
[]
["大分類","分類番号","分類番号","項目名"]
["農業、林業",null,"0100","主として管理事務を行う本社等"]
[null,null,"0109","その他の管理，補助的経済活動を行う事業所"]
[null,null,"0111","米作農業"]
[null,null,"0112","米作以外の穀作農業"]
[null,null,"0113","野菜作農業（きのこ類の栽培を含む）"]
[null,null,"0114","果樹作農業"]
[null,null,"0115","花き作農業"]
[null,null,"0116","工芸農作物農業"]
[null,null,"0117","ばれいしょ・かんしょ作農業"]
[null,null,"0119","その他の耕種農業"]
[null,null,"0121","酪農業"]
[null,null,"0122","肉用牛生産業"]
[null,null,"0123","養豚業"]
[null,null,"0124","養鶏業"]
[null,null,"0125","畜産類似業"]
[null,null,"0126","養蚕農業"]
[null,null,"0129","その他の畜産農業"]
[null,null,"0131","穀作サービス業"]
[null,null,"0132","野菜作・果樹作サービス業"]
[null,null,"0133","穀作，野菜作・果樹作以外の耕種サービス業"]
[null,null,"0134","畜産サービス業（獣医業を除く）"]
[null,null,"0141","園芸サービス業"]
[null,null,"0200","主として管理事務を行う本社等"]
[null,null,"0209","その他の管理，補助的経済活動を行う事業所"]
[null,null,"0211","育林業"]
[null,null,"0221","素材生産業"]
[null,null,"0231","製薪炭業"]
[null,null,"0239","その他の特用林産物生産業（きのこ類の栽培を除く）"]
[null,null,"0241","育林サービス業"]
[null,null,"0242","素材生産サービス業"]
[null,null,"0243","山林種苗生産サービス業"]
[null,null,"0249","その他の林業サービス業"]
[null,null,"0299","その他の林業"]
["漁業",null,"0300","主として管理事務を行う本社等"]
[null,null,"0309","その他の管理，補助的経済活動を行う事業所"]
[null,null,"0311","底びき網漁業"]
[null,null,"0312","まき網漁業"]
[null,null,"0313","刺網漁業"]
[null,null,"0314","釣・はえ縄漁業"]
[null,null,"0315","定置網漁業"]
[null,null,"0316","地びき網・船びき網漁業"]
[null,null,"0317","採貝・採藻業"]
[null,null,"0318","捕鯨業"]
[null,null,"0319","その他の海面漁業"]
[null,null,"0321","内水面漁業"]
[null,null,"0400","主として管理事務を行う本社等"]
[null,null,"0409","その他の管理，補助的経済活動を行う事業所"]
[null,null,"0411","魚類養殖業"]
[null,null,"0412","貝類養殖業"]
[null,null,"0413","藻類養殖業"]
[null,null,"0414","真珠養殖業"]
[null,null,"0415","種苗養殖業"]
[null,null,"0419","その他の海面養殖業"]
[null,null,"0421","内水面養殖業"]
["鉱業、採石業、砂利採取業",null,"0500","主として管理事務を行う本社等"]
[null,null,"0509","その他の管理，補助的経済活動を行う事業所"]
[null,null,"0511","金・銀鉱業"]
[null,null,"0512","鉛・亜鉛鉱業"]
[null,null,"0513","鉄鉱業"]
[null,null,"0519","その他の金属鉱業"]
[null,null,"0521","石炭鉱業（石炭選別業を含む）"]
[null,null,"0522","亜炭鉱業"]
[null,null,"0531","原油鉱業"]
[null,null,"0532","天然ガス鉱業"]
[null,null,"0541","花こう岩・同類似岩石採石業"]
[null,null,"0542","石英粗面岩・同類似岩石採石業"]
[null,null,"0543","安山岩・同類似岩石採石業"]
[null,null,"0544","大理石採石業"]
[null,null,"0545","ぎょう灰岩採石業"]
[null,null,"0546","砂岩採石業"]
[null,null,"0547","粘板岩採石業"]
[null,null,"0548","砂・砂利・玉石採取業"]
[null,null,"0549","その他の採石業，砂・砂利・玉石採取業"]
[null,null,"0551","耐火粘土鉱業"]
[null,null,"0552","ろう石鉱業"]
[null,null,"0553","ドロマイト鉱業"]
[null,null,"0554","長石鉱業"]
[null,null,"0555","けい石鉱業"]
[null,null,"0556","天然けい砂鉱業"]
[null,null,"0557","石灰石鉱業"]
[null,null,"0559","その他の窯業原料用鉱物鉱業"]
[null,null,"0591","酸性白土鉱業"]
[null,null,"0592","ベントナイト鉱業"]
[null,null,"0593","けいそう土鉱業"]
[null,null,"0594","滑石鉱業"]
[null,null,"0599","他に分類されない鉱業"]
["建設業",null,"0600","主として管理事務を行う本社等"]
[null,null,"0609","その他の管理，補助的経済活動を行う事業所"]
[null,null,"0611","一般土木建築工事業"]
[null,null,"0621","土木工事業(別掲を除く)"]
[null,null,"0622","造園工事業"]
[null,null,"0623","しゅんせつ工事業"]
[null,null,"0631","舗装工事業"]
[null,null,"0641","建築工事業(木造建築工事業を除く)"]
[null,null,"0651","木造建築工事業"]
[null,null,"0661","建築リフォーム工事業"]
[null,null,"0700","主として管理事務を行う本社等"]
[null,null,"0709","その他の管理，補助的経済活動を行う事業所"]
[null,null,"0711","大工工事業(型枠大工工事業を除く)"]
[null,null,"0712","型枠大工工事業"]
[null,null,"0721","とび工事業"]
[null,null,"0722","土工・コンクリート工事業"]
[null,null,"0723","特殊コンクリート工事業"]
[null,null,"0731","鉄骨工事業"]
[null,null,"0732","鉄筋工事業"]
[null,null,"0741","石工工事業"]
[null,null,"0742","れんが工事業"]
[null,null,"0743","タイル工事業"]
[null,null,"0744","コンクリートブロック工事業"]
[null,null,"0751","左官工事業"]
[null,null,"0761","金属製屋根工事業"]
[null,null,"0762","板金工事業"]
[null,null,"0763","建築金物工事業"]
[null,null,"0771","塗装工事業（道路標示・区画線工事業を除く）"]
[null,null,"0772","道路標示・区画線工事業"]
[null,null,"0781","床工事業"]
[null,null,"0782","内装工事業"]
[null,null,"0791","ガラス工事業"]
[null,null,"0792","金属製建具工事業"]
[null,null,"0793","木製建具工事業"]
[null,null,"0794","屋根工事業（金属製屋根工事業を除く）"]
[null,null,"0795","防水工事業"]
[null,null,"0796","はつり・解体工事業"]
[null,null,"0799","他に分類されない職別工事業"]
[null,null,"0800","主として管理事務を行う本社等"]
[null,null,"0809","その他の管理，補助的経済活動を行う事業所"]
[null,null,"0811","一般電気工事業"]
[null,null,"0812","電気配線工事業"]
[null,null,"0821","電気通信工事業（有線テレビジョン放送設備設置工事業を除く）"]
[null,null,"0822","有線テレビジョン放送設備設置工事業"]
[null,null,"0823","信号装置工事業"]
[null,null,"0831","一般管工事業"]
[null,null,"0832","冷暖房設備工事業"]
[null,null,"0833","給排水・衛生設備工事業"]
[null,null,"0839","その他の管工事業"]
[null,null,"0841","機械器具設置工事業（昇降設備工事業を除く）"]
[null,null,"0842","昇降設備工事業"]
[null,null,"0891","築炉工事業"]
[null,null,"0892","熱絶縁工事業"]
[null,null,"0893","道路標識設置工事業"]
[null,null,"0894","さく井工事業"]
["製造業",null,"0900","主として管理事務を行う本社等"]
[null,null,"0909","その他の管理，補助的経済活動を行う事業所"]
[null,null,"0911","部分肉・冷凍肉製造業"]
[null,null,"0912","肉加工品製造業"]
[null,null,"0913","処理牛乳・乳飲料製造業"]
[null,null,"0914","乳製品製造業（処理牛乳，乳飲料を除く）"]
[null,null,"0919","その他の畜産食料品製造業"]
[null,null,"0921","水産缶詰・瓶詰製造業"]
[null,null,"0922","海藻加工業"]
[null,null,"0923","水産練製品製造業"]
[null,null,"0924","塩干・塩蔵品製造業"]
[null,null,"0925","冷凍水産物製造業"]
[null,null,"0926","冷凍水産食品製造業"]
[null,null,"0929","その他の水産食料品製造業"]
[null,null,"0931","野菜缶詰・果実缶詰・農産保存食料品製造業（野菜漬物を除く）"]
[null,null,"0932","野菜漬物製造業（缶詰，瓶詰，つぼ詰を除く）"]
[null,null,"0941","味そ製造業"]
[null,null,"0942","しょう油・食用アミノ酸製造業"]
[null,null,"0943","ソース製造業"]
[null,null,"0944","食酢製造業"]
[null,null,"0949","その他の調味料製造業"]
[null,null,"0951","砂糖製造業（砂糖精製業を除く）"]
[null,null,"0952","砂糖精製業"]
[null,null,"0953","ぶどう糖・水あめ・異性化糖製造業"]
[null,null,"0961","精米・精麦業"]
[null,null,"0962","小麦粉製造業"]
[null,null,"0969","その他の精穀・製粉業"]
[null,null,"0971","パン製造業"]
[null,null,"0972","生菓子製造業"]
[null,null,"0973","ビスケット類・干菓子製造業"]
[null,null,"0974","米菓製造業"]
[null,null,"0979","その他のパン・菓子製造業"]
[null,null,"0981","動植物油脂製造業（食用油脂加工業を除く）"]
[null,null,"0982","食用油脂加工業"]
[null,null,"0991","でんぷん製造業"]
[null,null,"0992","めん類製造業"]
[null,null,"0993","豆腐・油揚製造業"]
[null,null,"0994","あん類製造業"]
[null,null,"0995","冷凍調理食品製造業"]
[null,null,"0996","そう（惣）菜製造業"]
[null,null,"0997","すし・弁当・調理パン製造業"]
[null,null,"0998","レトルト食品製造業"]
[null,null,"0999","他に分類されない食料品製造業"]
[null,null,"1000","主として管理事務を行う本社等"]
[null,null,"1009","その他の管理，補助的経済活動を行う事業所"]
[null,null,"1011","清涼飲料製造業"]
[null,null,"1021","果実酒製造業"]
[null,null,"1022","ビール類製造業"]
[null,null,"1023","清酒製造業"]
[null,null,"1024","蒸留酒・混成酒製造業"]
[null,null,"1031","製茶業"]
[null,null,"1032","コーヒー製造業"]
[null,null,"1041","製氷業"]
[null,null,"1051","たばこ製造業（葉たばこ処理業を除く)"]
[null,null,"1052","葉たばこ処理業"]
[null,null,"1061","配合飼料製造業"]
[null,null,"1062","単体飼料製造業"]
[null,null,"1063","有機質肥料製造業"]
[null,null,"1100","主として管理事務を行う本社等"]
[null,null,"1109","その他の管理，補助的経済活動を行う事業所"]
[null,null,"1111","製糸業"]
[null,null,"1112","化学繊維製造業"]
[null,null,"1113","炭素繊維製造業"]
[null,null,"1114","綿紡績業"]
[null,null,"1115","化学繊維紡績業"]
[null,null,"1116","毛紡績業"]
[null,null,"1117","ねん糸製造業（かさ高加工糸を除く）"]
[null,null,"1118","かさ高加工糸製造業"]
[null,null,"1119","その他の紡績業"]
[null,null,"1121","綿・スフ織物業"]
[null,null,"1122","絹・人絹織物業"]
[null,null,"1123","毛織物業"]
[null,null,"1124","麻織物業"]
[null,null,"1125","細幅織物業"]
[null,null,"1129","その他の織物業"]
[null,null,"1131","丸編ニット生地製造業"]
[null,null,"1132","たて編ニット生地製造業"]
[null,null,"1133","横編ニット生地製造業"]
[null,null,"1141","綿・スフ・麻織物機械染色業"]
[null,null,"1142","絹・人絹織物機械染色業"]
[null,null,"1143","毛織物機械染色整理業"]
[null,null,"1144","織物整理業"]
[null,null,"1145","織物手加工染色整理業"]
[null,null,"1146","綿状繊維・糸染色整理業"]
[null,null,"1147","ニット・レース染色整理業"]
[null,null,"1148","繊維雑品染色整理業"]
[null,null,"1151","綱製造業"]
[null,null,"1152","漁網製造業"]
[null,null,"1153","網地製造業（漁網を除く）"]
[null,null,"1154","レース製造業"]
[null,null,"1155","組ひも製造業"]
[null,null,"1156","整毛業"]
[null,null,"1157","フェルト・不織布製造業"]
[null,null,"1158","上塗りした織物・防水した織物製造業"]
[null,null,"1159","その他の繊維粗製品製造業"]
[null,null,"1161","織物製成人男子・少年服製造業（不織布製及びレース製を含む）"]
[null,null,"1162","織物製成人女子・少女服製造業（不織布製及びレース製を含む）"]
[null,null,"1163","織物製乳幼児服製造業（不織布製及びレース製を含む）"]
[null,null,"1164","織物製シャツ製造業（不織布製及びレース製を含み、下着を除く）"]
[null,null,"1165","織物製事務用・作業用・衛生用・スポーツ用衣服・学校服製造業（不織布製及びレース製を含む）"]
[null,null,"1166","ニット製外衣製造業（アウターシャツ類，セーター類などを除く）"]
[null,null,"1167","ニット製アウターシャツ類製造業"]
[null,null,"1168","セーター類製造業"]
[null,null,"1169","その他の外衣・シャツ製造業"]
[null,null,"1171","織物製下着製造業"]
[null,null,"1172","ニット製下着製造業"]
[null,null,"1173","織物製・ニット製寝着類製造業"]
[null,null,"1174","補整着製造業"]
[null,null,"1181","和装製品製造業（足袋を含む）"]
[null,null,"1182","ネクタイ製造業"]
[null,null,"1183","スカーフ・マフラー・ハンカチーフ製造業"]
[null,null,"1184","靴下製造業"]
[null,null,"1185","手袋製造業"]
[null,null,"1186","帽子製造業（帽体を含む）"]
[null,null,"1189","他に分類されない衣服・繊維製身の回り品製造業"]
[null,null,"1191","寝具製造業"]
[null,null,"1192","毛布製造業"]
[null,null,"1193","じゅうたん・その他の繊維製床敷物製造業"]
[null,null,"1194","帆布製品製造業"]
[null,null,"1195","繊維製袋製造業"]
[null,null,"1196","刺しゅう業"]
[null,null,"1197","タオル製造業"]
[null,null,"1198","繊維製衛生材料製造業"]
[null,null,"1199","他に分類されない繊維製品製造業"]
[null,null,"1200","主として管理事務を行う本社等"]
[null,null,"1209","その他の管理，補助的経済活動を行う事業所"]
[null,null,"1211","一般製材業"]
[null,null,"1212","単板（ベニヤ）製造業"]
[null,null,"1213","木材チップ製造業"]
[null,null,"1219","その他の特殊製材業"]
[null,null,"1221","造作材製造業（建具を除く）"]
[null,null,"1222","合板製造業"]
[null,null,"1223","集成材製造業"]
[null,null,"1224","建築用木製組立材料製造業"]
[null,null,"1225","パーティクルボード製造業"]
[null,null,"1226","繊維板製造業"]
[null,null,"1227","銘木製造業"]
[null,null,"1228","床板製造業"]
[null,null,"1231","竹・とう・きりゅう等容器製造業"]
[null,null,"1232","木箱製造業"]
[null,null,"1233","たる・おけ製造業"]
[null,null,"1291","木材薬品処理業"]
[null,null,"1292","コルク加工基礎資材・コルク製品製造業"]
[null,null,"1299","他に分類されない木製品製造業(竹，とうを含む)"]
[null,null,"1300","主として管理事務を行う本社等"]
[null,null,"1309","その他の管理，補助的経済活動を行う事業所"]
[null,null,"1311","木製家具製造業（漆塗りを除く）"]
[null,null,"1312","金属製家具製造業"]
[null,null,"1313","マットレス・組スプリング製造業"]
[null,null,"1321","宗教用具製造業"]
[null,null,"1331","建具製造業"]
[null,null,"1391","事務所用・店舗用装備品製造業"]
[null,null,"1392","窓用・扉用日よけ，日本びょうぶ等製造業"]
[null,null,"1393","鏡縁・額縁製造業"]
[null,null,"1399","他に分類されない家具・装備品製造業"]
[null,null,"1400","主として管理事務を行う本社等"]
[null,null,"1409","その他の管理，補助的経済活動を行う事業所"]
[null,null,"1411","パルプ製造業"]
[null,null,"1421","洋紙製造業"]
[null,null,"1422","板紙製造業"]
[null,null,"1423","機械すき和紙製造業"]
[null,null,"1424","手すき和紙製造業"]
[null,null,"1431","塗工紙製造業（印刷用紙を除く）"]
[null,null,"1432","段ボール製造業"]
[null,null,"1433","壁紙・ふすま紙製造業"]
[null,null,"1441","事務用・学用紙製品製造業"]
[null,null,"1442","日用紙製品製造業"]
[null,null,"1449","その他の紙製品製造業"]
[null,null,"1451","重包装紙袋製造業"]
[null,null,"1452","角底紙袋製造業"]
[null,null,"1453","段ボール箱製造業"]
[null,null,"1454","紙器製造業"]
[null,null,"1499","その他のパルプ・紙・紙加工品製造業"]
[null,null,"1500","主として管理事務を行う本社等"]
[null,null,"1509","その他の管理，補助的経済活動を行う事業所"]
[null,null,"1511","オフセット印刷業（紙に対するもの）"]
[null,null,"1512","オフセット印刷以外の印刷業（紙に対するもの）"]
[null,null,"1513","紙以外の印刷業"]
[null,null,"1521","製版業"]
[null,null,"1531","製本業"]
[null,null,"1532","印刷物加工業"]
[null,null,"1591","印刷関連サービス業"]
[null,null,"1600","主として管理事務を行う本社等"]
[null,null,"1609","その他の管理，補助的経済活動を行う事業所"]
[null,null,"1611","窒素質・りん酸質肥料製造業"]
[null,null,"1612","複合肥料製造業"]
[null,null,"1619","その他の化学肥料製造業"]
[null,null,"1621","ソーダ工業"]
[null,null,"1622","無機顔料製造業"]
[null,null,"1623","圧縮ガス・液化ガス製造業"]
[null,null,"1624","塩製造業"]
[null,null,"1629","その他の無機化学工業製品製造業"]
[null,null,"1631","石油化学系基礎製品製造業（一貫して生産される誘導品を含む）"]
[null,null,"1632","脂肪族系中間物製造業（脂肪族系溶剤を含む）"]
[null,null,"1633","発酵工業"]
[null,null,"1634","環式中間物・合成染料・有機顔料製造業"]
[null,null,"1635","プラスチック製造業"]
[null,null,"1636","合成ゴム製造業"]
[null,null,"1639","その他の有機化学工業製品製造業"]
[null,null,"1641","脂肪酸・硬化油・グリセリン製造業"]
[null,null,"1642","石けん・合成洗剤製造業"]
[null,null,"1643","界面活性剤製造業（石けん，合成洗剤を除く）"]
[null,null,"1644","塗料製造業"]
[null,null,"1645","印刷インキ製造業"]
[null,null,"1646","洗浄剤・磨用剤製造業"]
[null,null,"1647","ろうそく製造業"]
[null,null,"1651","医薬品原薬製造業"]
[null,null,"1652","医薬品製剤製造業"]
[null,null,"1653","生物学的製剤製造業"]
[null,null,"1654","生薬・漢方製剤製造業"]
[null,null,"1655","動物用医薬品製造業"]
[null,null,"1661","仕上用・皮膚用化粧品製造業（香水，オーデコロンを含む）"]
[null,null,"1662","頭髪用化粧品製造業"]
[null,null,"1669","その他の化粧品・歯磨・化粧用調整品製造業"]
[null,null,"1691","火薬類製造業"]
[null,null,"1692","農薬製造業"]
[null,null,"1693","香料製造業"]
[null,null,"1694","ゼラチン・接着剤製造業"]
[null,null,"1695","写真感光材料製造業"]
[null,null,"1696","天然樹脂製品・木材化学製品製造業"]
[null,null,"1697","試薬製造業"]
[null,null,"1699","他に分類されない化学工業製品製造業"]
[null,null,"1700","主として管理事務を行う本社等"]
[null,null,"1709","その他の管理，補助的経済活動を行う事業所"]
[null,null,"1711","石油精製業"]
[null,null,"1721","潤滑油・グリース製造業（石油精製業によらないもの）"]
[null,null,"1731","コークス製造業"]
[null,null,"1741","舗装材料製造業"]
[null,null,"1799","その他の石油製品・石炭製品製造業"]
[null,null,"1800","主として管理事務を行う本社等"]
[null,null,"1809","その他の管理，補助的経済活動を行う事業所"]
[null,null,"1811","プラスチック板・棒製造業"]
[null,null,"1812","プラスチック管製造業"]
[null,null,"1813","プラスチック継手製造業"]
[null,null,"1814","プラスチック異形押出製品製造業"]
[null,null,"1815","プラスチック板・棒・管・継手・異形押出製品加工業"]
[null,null,"1821","プラスチックフィルム製造業"]
[null,null,"1822","プラスチックシート製造業"]
[null,null,"1823","プラスチック床材製造業"]
[null,null,"1824","合成皮革製造業"]
[null,null,"1825","プラスチックフィルム・シート・床材・合成皮革加工業"]
[null,null,"1831","電気機械器具用プラスチック製品製造業（加工業を除く）"]
[null,null,"1832","輸送機械器具用プラスチック製品製造業（加工業を除く）"]
[null,null,"1833","その他の工業用プラスチック製品製造業（加工業を除く）"]
[null,null,"1834","工業用プラスチック製品加工業"]
[null,null,"1841","軟質プラスチック発泡製品製造業（半硬質性を含む）"]
[null,null,"1842","硬質プラスチック発泡製品製造業"]
[null,null,"1843","強化プラスチック製板・棒・管・継手製造業"]
[null,null,"1844","強化プラスチック製容器・浴槽等製造業"]
[null,null,"1845","発泡・強化プラスチック製品加工業"]
[null,null,"1851","プラスチック成形材料製造業"]
[null,null,"1852","廃プラスチック製品製造業"]
[null,null,"1891","プラスチック製日用雑貨・食卓用品製造業"]
[null,null,"1892","プラスチック製容器製造業"]
[null,null,"1897","他に分類されないプラスチック製品製造業"]
[null,null,"1898","他に分類されないプラスチック製品加工業"]
[null,null,"1900","主として管理事務を行う本社等"]
[null,null,"1909","その他の管理，補助的経済活動を行う事業所"]
[null,null,"1911","自動車タイヤ・チューブ製造業"]
[null,null,"1919","その他のタイヤ・チューブ製造業"]
[null,null,"1921","ゴム製履物・同附属品製造業"]
[null,null,"1922","プラスチック製履物・同附属品製造業"]
[null,null,"1931","ゴムベルト製造業"]
[null,null,"1932","ゴムホース製造業"]
[null,null,"1933","工業用ゴム製品製造業"]
[null,null,"1991","ゴム引布・同製品製造業"]
[null,null,"1992","医療・衛生用ゴム製品製造業"]
[null,null,"1993","ゴム練生地製造業"]
[null,null,"1994","更生タイヤ製造業"]
[null,null,"1995","再生ゴム製造業"]
[null,null,"1999","他に分類されないゴム製品製造業"]
[null,null,"2000","主として管理事務を行う本社等"]
[null,null,"2009","その他の管理，補助的経済活動を行う事業所"]
[null,null,"2011","なめし革製造業"]
[null,null,"2021","工業用革製品製造業（手袋を除く）"]
[null,null,"2031","革製履物用材料・同附属品製造業"]
[null,null,"2041","革製履物製造業"]
[null,null,"2051","革製手袋製造業"]
[null,null,"2061","かばん製造業"]
[null,null,"2071","袋物製造業（ハンドバッグを除く）"]
[null,null,"2072","ハンドバッグ製造業"]
[null,null,"2081","毛皮製造業"]
[null,null,"2099","その他のなめし革製品製造業"]
[null,null,"2100","主として管理事務を行う本社等"]
[null,null,"2109","その他の管理，補助的経済活動を行う事業所"]
[null,null,"2111","板ガラス製造業"]
[null,null,"2112","板ガラス加工業"]
[null,null,"2113","ガラス製加工素材製造業"]
[null,null,"2114","ガラス容器製造業"]
[null,null,"2115","理化学用・医療用ガラス器具製造業"]
[null,null,"2116","卓上用・ちゅう房用ガラス器具製造業"]
[null,null,"2117","ガラス繊維・同製品製造業"]
[null,null,"2119","その他のガラス・同製品製造業"]
[null,null,"2121","セメント製造業"]
[null,null,"2122","生コンクリート製造業"]
[null,null,"2123","コンクリート製品製造業"]
[null,null,"2129","その他のセメント製品製造業"]
[null,null,"2131","粘土かわら製造業"]
[null,null,"2132","普通れんが製造業"]
[null,null,"2139","その他の建設用粘土製品製造業"]
[null,null,"2141","衛生陶器製造業"]
[null,null,"2142","食卓用・ちゅう房用陶磁器製造業"]
[null,null,"2143","陶磁器製置物製造業"]
[null,null,"2144","電気用陶磁器製造業"]
[null,null,"2145","理化学用・工業用陶磁器製造業"]
[null,null,"2146","陶磁器製タイル製造業"]
[null,null,"2147","陶磁器絵付業"]
[null,null,"2148","陶磁器用はい（坏）土製造業"]
[null,null,"2149","その他の陶磁器・同関連製品製造業"]
[null,null,"2151","耐火れんが製造業"]
[null,null,"2152","不定形耐火物製造業"]
[null,null,"2159","その他の耐火物製造業"]
[null,null,"2161","炭素質電極製造業"]
[null,null,"2169","その他の炭素・黒鉛製品製造業"]
[null,null,"2171","研磨材製造業"]
[null,null,"2172","研削と石製造業"]
[null,null,"2173","研磨布紙製造業"]
[null,null,"2179","その他の研磨材・同製品製造業"]
[null,null,"2181","砕石製造業"]
[null,null,"2182","再生骨材製造業"]
[null,null,"2183","人工骨材製造業"]
[null,null,"2184","石工品製造業"]
[null,null,"2185","けいそう土・同製品製造業"]
[null,null,"2186","鉱物・土石粉砕等処理業"]
[null,null,"2191","ロックウール・同製品製造業"]
[null,null,"2192","石こう（膏）製品製造業"]
[null,null,"2193","石灰製造業"]
[null,null,"2194","鋳型製造業（中子を含む）"]
[null,null,"2199","他に分類されない窯業・土石製品製造業"]
[null,null,"2200","主として管理事務を行う本社等"]
[null,null,"2209","その他の管理，補助的経済活動を行う事業所"]
[null,null,"2211","高炉による製鉄業"]
[null,null,"2212","高炉によらない製鉄業"]
[null,null,"2213","フェロアロイ製造業"]
[null,null,"2221","製鋼・製鋼圧延業"]
[null,null,"2231","熱間圧延業（鋼管，伸鉄を除く）"]
[null,null,"2232","冷間圧延業（鋼管，伸鉄を除く）"]
[null,null,"2233","冷間ロール成型形鋼製造業"]
[null,null,"2234","鋼管製造業"]
[null,null,"2235","伸鉄業"]
[null,null,"2236","磨棒鋼製造業"]
[null,null,"2237","引抜鋼管製造業"]
[null,null,"2238","伸線業"]
[null,null,"2239","その他の製鋼を行わない鋼材製造業（表面処理鋼材を除く)"]
[null,null,"2241","亜鉛鉄板製造業"]
[null,null,"2249","その他の表面処理鋼材製造業"]
[null,null,"2251","銑鉄鋳物製造業（鋳鉄管，可鍛鋳鉄を除く）"]
[null,null,"2252","可鍛鋳鉄製造業"]
[null,null,"2253","鋳鋼製造業"]
[null,null,"2254","鍛工品製造業"]
[null,null,"2255","鍛鋼製造業"]
[null,null,"2291","鉄鋼シャースリット業"]
[null,null,"2292","鉄スクラップ加工処理業"]
[null,null,"2293","鋳鉄管製造業"]
[null,null,"2299","他に分類されない鉄鋼業"]
[null,null,"2300","主として管理事務を行う本社等"]
[null,null,"2309","その他の管理，補助的経済活動を行う事業所"]
[null,null,"2311","銅第1次製錬・精製業"]
[null,null,"2312","亜鉛第1次製錬・精製業"]
[null,null,"2319","その他の非鉄金属第1次製錬・精製業"]
[null,null,"2321","鉛第2次製錬・精製業（鉛合金製造業を含む)"]
[null,null,"2322","アルミニウム第2次製錬・精製業（アルミニウム合金製造業を含む）"]
[null,null,"2329","その他の非鉄金属第2次製錬・精製業（非鉄金属合金製造業を含む）"]
[null,null,"2331","伸銅品製造業"]
[null,null,"2332","アルミニウム・同合金圧延業（抽伸，押出しを含む）"]
[null,null,"2339","その他の非鉄金属・同合金圧延業（抽伸，押出しを含む）"]
[null,null,"2341","電線・ケーブル製造業（光ファイバケーブルを除く）"]
[null,null,"2342","光ファイバケーブル製造業（通信複合ケーブルを含む）"]
[null,null,"2351","銅・同合金鋳物製造業（ダイカストを除く）"]
[null,null,"2352","非鉄金属鋳物製造業（銅・同合金鋳物及びダイカストを除く）"]
[null,null,"2353","アルミニウム・同合金ダイカスト製造業"]
[null,null,"2354","非鉄金属ダイカスト製造業（アルミニウム・同合金ダイカストを除く）"]
[null,null,"2355","非鉄金属鍛造品製造業"]
[null,null,"2391","核燃料製造業"]
[null,null,"2399","他に分類されない非鉄金属製造業"]
[null,null,"2400","主として管理事務を行う本社等"]
[null,null,"2409","その他の管理，補助的経済活動を行う事業所"]
[null,null,"2411","ブリキ缶・その他のめっき板等製品製造業"]
[null,null,"2421","洋食器製造業"]
[null,null,"2422","機械刃物製造業"]
[null,null,"2423","利器工匠具・手道具製造業（やすり，のこぎり，食卓用刃物を除く）"]
[null,null,"2424","作業工具製造業"]
[null,null,"2425","手引のこぎり・のこ刃製造業"]
[null,null,"2426","農業用器具製造業（農業用機械を除く）"]
[null,null,"2429","その他の金物類製造業"]
[null,null,"2431","配管工事用附属品製造業（バルブ，コックを除く）"]
[null,null,"2432","ガス機器・石油機器製造業"]
[null,null,"2433","温風・温水暖房装置製造業"]
[null,null,"2439","その他の暖房・調理装置製造業（電気機械器具，ガス機器，石油機器を除く）"]
[null,null,"2441","鉄骨製造業"]
[null,null,"2442","建設用金属製品製造業（鉄骨を除く）"]
[null,null,"2443","金属製サッシ・ドア製造業"]
[null,null,"2444","鉄骨系プレハブ住宅製造業"]
[null,null,"2445","建築用金属製品製造業（サッシ，ドア，建築用金物を除く）"]
[null,null,"2446","製缶板金業"]
[null,null,"2451","アルミニウム・同合金プレス製品製造業"]
[null,null,"2452","金属プレス製品製造業（アルミニウム・同合金を除く）"]
[null,null,"2453","粉末や金製品製造業"]
[null,null,"2461","金属製品塗装業"]
[null,null,"2462","溶融めっき業（表面処理鋼材製造業を除く）"]
[null,null,"2463","金属彫刻業"]
[null,null,"2464","電気めっき業（表面処理鋼材製造業を除く）"]
[null,null,"2465","金属熱処理業"]
[null,null,"2469","その他の金属表面処理業"]
[null,null,"2471","くぎ製造業"]
[null,null,"2479","その他の金属線製品製造業"]
[null,null,"2481","ボルト・ナット・リベット・小ねじ・木ねじ等製造業"]
[null,null,"2491","金庫製造業"]
[null,null,"2492","金属製スプリング製造業"]
[null,null,"2499","他に分類されない金属製品製造業"]
[null,null,"2500","主として管理事務を行う本社等"]
[null,null,"2509","その他の管理，補助的経済活動を行う事業所"]
[null,null,"2511","ボイラ製造業"]
[null,null,"2512","蒸気機関・タービン・水力タービン製造業（舶用を除く）"]
[null,null,"2513","はん用内燃機関製造業"]
[null,null,"2519","その他の原動機製造業"]
[null,null,"2521","ポンプ・同装置製造業"]
[null,null,"2522","空気圧縮機・ガス圧縮機・送風機製造業"]
[null,null,"2523","油圧・空圧機器製造業"]
[null,null,"2531","動力伝導装置製造業（玉軸受，ころ軸受を除く）"]
[null,null,"2532","エレベータ・エスカレータ製造業"]
[null,null,"2533","物流運搬設備製造業"]
[null,null,"2534","工業窯炉製造業"]
[null,null,"2535","冷凍機・温湿調整装置製造業"]
[null,null,"2591","消火器具・消火装置製造業"]
[null,null,"2592","弁・同附属品製造業"]
[null,null,"2593","パイプ加工・パイプ附属品加工業"]
[null,null,"2594","玉軸受・ころ軸受製造業"]
[null,null,"2595","ピストンリング製造業"]
[null,null,"2596","他に分類されないはん用機械・装置製造業"]
[null,null,"2599","各種機械・同部分品製造修理業（注文製造・修理）"]
[null,null,"2600","主として管理事務を行う本社等"]
[null,null,"2609","その他の管理，補助的経済活動を行う事業所"]
[null,null,"2611","農業用機械製造業（農業用器具を除く）"]
[null,null,"2621","建設機械・鉱山機械製造業"]
[null,null,"2631","化学繊維機械・紡績機械製造業"]
[null,null,"2632","製織機械・編組機械製造業"]
[null,null,"2633","染色整理仕上機械製造業"]
[null,null,"2634","繊維機械部分品・取付具・附属品製造業"]
[null,null,"2635","縫製機械製造業"]
[null,null,"2641","食品機械・同装置製造業"]
[null,null,"2642","木材加工機械製造業"]
[null,null,"2643","パルプ装置・製紙機械製造業"]
[null,null,"2644","印刷・製本・紙工機械製造業"]
[null,null,"2645","包装・荷造機械製造業"]
[null,null,"2651","鋳造装置製造業"]
[null,null,"2652","化学機械・同装置製造業"]
[null,null,"2653","プラスチック加工機械・同附属装置製造業"]
[null,null,"2661","金属工作機械製造業"]
[null,null,"2662","金属加工機械製造業（金属工作機械を除く）"]
[null,null,"2663","金属工作機械用・金属加工機械用部分品・附属品製造業（機械工具，金型を除く）"]
[null,null,"2664","機械工具製造業（粉末や金業を除く）"]
[null,null,"2671","半導体製造装置製造業"]
[null,null,"2672","フラットパネルディスプレイ製造装置製造業"]
[null,null,"2691","金属用金型・同部分品・附属品製造業"]
[null,null,"2692","非金属用金型・同部分品・附属品製造業"]
[null,null,"2693","真空装置・真空機器製造業"]
[null,null,"2694","ロボット製造業"]
[null,null,"2699","他に分類されない生産用機械・同部分品製造業"]
[null,null,"2700","主として管理事務を行う本社等"]
[null,null,"2709","その他の管理，補助的経済活動を行う事業所"]
[null,null,"2711","複写機製造業"]
[null,null,"2719","その他の事務用機械器具製造業"]
[null,null,"2721","サービス用機械器具製造業"]
[null,null,"2722","娯楽用機械製造業"]
[null,null,"2723","自動販売機製造業"]
[null,null,"2729","その他のサービス用・娯楽用機械器具製造業"]
[null,null,"2731","体積計製造業"]
[null,null,"2732","はかり製造業"]
[null,null,"2733","圧力計・流量計・液面計等製造業"]
[null,null,"2734","精密測定器製造業"]
[null,null,"2735","分析機器製造業"]
[null,null,"2736","試験機製造業"]
[null,null,"2737","測量機械器具製造業"]
[null,null,"2738","理化学機械器具製造業"]
[null,null,"2739","その他の計量器・測定器・分析機器・試験機・測量機械器具・理化学機械器具製造業"]
[null,null,"2741","医療用機械器具製造業"]
[null,null,"2742","歯科用機械器具製造業"]
[null,null,"2743","医療用品製造業（動物用医療機械器具を含む）"]
[null,null,"2744","歯科材料製造業"]
[null,null,"2751","顕微鏡・望遠鏡等製造業"]
[null,null,"2752","写真機・映画用機械・同附属品製造業"]
[null,null,"2753","光学機械用レンズ・プリズム製造業"]
[null,null,"2761","武器製造業"]
[null,null,"2800","主として管理事務を行う本社等"]
[null,null,"2809","その他の管理，補助的経済活動を行う事業所"]
[null,null,"2811","電子管製造業"]
[null,null,"2812","光電変換素子製造業"]
[null,null,"2813","半導体素子製造業（光電変換素子を除く）"]
[null,null,"2814","集積回路製造業"]
[null,null,"2815","液晶パネル・フラットパネル製造業"]
[null,null,"2821","抵抗器・コンデンサ・変成器・複合部品製造業"]
[null,null,"2822","音響部品・磁気ヘッド・小形モータ製造業"]
[null,null,"2823","コネクタ・スイッチ・リレー製造業"]
[null,null,"2831","半導体メモリメディア製造業"]
[null,null,"2832","光ディスク・磁気ディスク・磁気テープ製造業"]
[null,null,"2841","電子回路基板製造業"]
[null,null,"2842","電子回路実装基板製造業"]
[null,null,"2851","電源ユニット・高周波ユニット・コントロールユニット製造業"]
[null,null,"2859","その他のユニット部品製造業"]
[null,null,"2899","その他の電子部品・デバイス・電子回路製造業"]
[null,null,"2900","主として管理事務を行う本社等"]
[null,null,"2909","その他の管理，補助的経済活動を行う事業所"]
[null,null,"2911","発電機・電動機・その他の回転電気機械製造業"]
[null,null,"2912","変圧器類製造業（電子機器用を除く)"]
[null,null,"2913","電力開閉装置製造業"]
[null,null,"2914","配電盤・電力制御装置製造業"]
[null,null,"2915","配線器具・配線附属品製造業"]
[null,null,"2921","電気溶接機製造業"]
[null,null,"2922","内燃機関電装品製造業"]
[null,null,"2929","その他の産業用電気機械器具製造業（車両用，船舶用を含む）"]
[null,null,"2931","ちゅう房機器製造業"]
[null,null,"2932","空調・住宅関連機器製造業"]
[null,null,"2933","衣料衛生関連機器製造業"]
[null,null,"2939","その他の民生用電気機械器具製造業"]
[null,null,"2941","電球製造業"]
[null,null,"2942","電気照明器具製造業"]
[null,null,"2951","蓄電池製造業"]
[null,null,"2952","一次電池（乾電池，湿電池）製造業"]
[null,null,"2961","X線装置製造業"]
[null,null,"2962","医療用電子応用装置製造業"]
[null,null,"2969","その他の電子応用装置製造業"]
[null,null,"2971","電気計測器製造業（別掲を除く）"]
[null,null,"2972","工業計器製造業"]
[null,null,"2973","医療用計測器製造業"]
[null,null,"2999","その他の電気機械器具製造業"]
[null,null,"3000","主として管理事務を行う本社等"]
[null,null,"3009","その他の管理，補助的経済活動を行う事業所"]
[null,null,"3011","有線通信機械器具製造業"]
[null,null,"3012","携帯電話機・PHS電話機製造業"]
[null,null,"3013","無線通信機械器具製造業"]
[null,null,"3014","ラジオ受信機・テレビジョン受信機製造業"]
[null,null,"3015","交通信号保安装置製造業"]
[null,null,"3019","その他の通信機械器具・同関連機械器具製造業"]
[null,null,"3021","ビデオ機器製造業"]
[null,null,"3022","デジタルカメラ製造業"]
[null,null,"3023","電気音響機械器具製造業"]
[null,null,"3031","電子計算機製造業（パーソナルコンピュータを除く）"]
[null,null,"3032","パーソナルコンピュータ製造業"]
[null,null,"3033","外部記憶装置製造業"]
[null,null,"3034","印刷装置製造業"]
[null,null,"3035","表示装置製造業"]
[null,null,"3039","その他の附属装置製造業"]
[null,null,"3100","主として管理事務を行う本社等"]
[null,null,"3109","その他の管理，補助的経済活動を行う事業所"]
[null,null,"3111","自動車製造業（二輪自動車を含む）"]
[null,null,"3112","自動車車体・附随車製造業"]
[null,null,"3113","自動車部分品・附属品製造業"]
[null,null,"3121","鉄道車両製造業"]
[null,null,"3122","鉄道車両用部分品製造業"]
[null,null,"3131","船舶製造・修理業"]
[null,null,"3132","船体ブロック製造業"]
[null,null,"3133","舟艇製造・修理業"]
[null,null,"3134","舶用機関製造業"]
[null,null,"3141","航空機製造業"]
[null,null,"3142","航空機用原動機製造業"]
[null,null,"3149","その他の航空機部分品・補助装置製造業"]
[null,null,"3151","フォークリフトトラック・同部分品・附属品製造業"]
[null,null,"3159","その他の産業用運搬車両・同部分品・附属品製造業"]
[null,null,"3191","自転車・同部分品製造業"]
[null,null,"3199","他に分類されない輸送用機械器具製造業"]
[null,null,"3200","主として管理事務を行う本社等"]
[null,null,"3209","その他の管理，補助的経済活動を行う事業所"]
[null,null,"3211","貴金属・宝石製装身具（ジュエリー）製品製造業"]
[null,null,"3212","貴金属・宝石製装身具（ジュエリー）附属品・同材料加工業"]
[null,null,"3219","その他の貴金属製品製造業"]
[null,null,"3221","装身具・装飾品製造業（貴金属・宝石製を除く）"]
[null,null,"3222","造花・装飾用羽毛製造業"]
[null,null,"3223","ボタン製造業"]
[null,null,"3224","針・ピン・ホック・スナップ・同関連品製造業"]
[null,null,"3229","その他の装身具・装飾品製造業"]
[null,null,"3231","時計・同部分品製造業"]
[null,null,"3241","ピアノ製造業"]
[null,null,"3249","その他の楽器・楽器部品・同材料製造業"]
[null,null,"3251","娯楽用具・がん具製造業（人形を除く）"]
[null,null,"3252","人形製造業"]
[null,null,"3253","運動用具製造業"]
[null,null,"3261","万年筆・ペン類・鉛筆製造業"]
[null,null,"3262","毛筆・絵画用品製造業（鉛筆を除く）"]
[null,null,"3269","その他の事務用品製造業"]
[null,null,"3271","漆器製造業"]
[null,null,"3281","麦わら・パナマ類帽子・わら工品製造業"]
[null,null,"3282","畳製造業"]
[null,null,"3283","うちわ・扇子・ちょうちん製造業"]
[null,null,"3284","ほうき・ブラシ製造業"]
[null,null,"3285","喫煙用具製造業（貴金属・宝石製を除く）"]
[null,null,"3289","その他の生活雑貨製品製造業"]
[null,null,"3291","煙火製造業"]
[null,null,"3292","看板・標識機製造業"]
[null,null,"3293","パレット製造業"]
[null,null,"3294","モデル・模型製造業"]
[null,null,"3295","工業用模型製造業"]
[null,null,"3296","情報記録物製造業（新聞，書籍等の印刷物を除く）"]
[null,null,"3297","眼鏡製造業（枠を含む）"]
[null,null,"3299","他に分類されないその他の製造業"]
["電気・ガス・熱供給・水道業",null,"3300","主として管理事務を行う本社等"]
[null,null,"3309","その他の管理，補助的経済活動を行う事業所"]
[null,null,"3311","発電所"]
[null,null,"3312","変電所"]
[null,null,"3400","主として管理事務を行う本社等"]
[null,null,"3409","その他の管理，補助的経済活動を行う事業所"]
[null,null,"3411","ガス製造工場"]
[null,null,"3412","ガス供給所"]
[null,null,"3500","主として管理事務を行う本社等"]
[null,null,"3509","その他の管理，補助的経済活動を行う事業所"]
[null,null,"3511","熱供給業"]
[null,null,"3600","主として管理事務を行う本社等"]
[null,null,"3609","その他の管理，補助的経済活動を行う事業所"]
[null,null,"3611","上水道業"]
[null,null,"3621","工業用水道業"]
[null,null,"3631","下水道処理施設維持管理業"]
[null,null,"3632","下水道管路施設維持管理業"]
["情報通信業",null,"3700","主として管理事務を行う本社等"]
[null,null,"3709","その他の管理，補助的経済活動を行う事業所"]
[null,null,"3711","地域電気通信業（有線放送電話業を除く）"]
[null,null,"3712","長距離電気通信業"]
[null,null,"3713","有線放送電話業"]
[null,null,"3719","その他の固定電気通信業"]
[null,null,"3721","移動電気通信業"]
[null,null,"3731","電気通信に附帯するサービス業"]
[null,null,"3800","主として管理事務を行う本社等"]
[null,null,"3809","その他の管理，補助的経済活動を行う事業所"]
[null,null,"3811","公共放送業（有線放送業を除く）"]
[null,null,"3821","テレビジョン放送業（衛星放送業を除く）"]
[null,null,"3822","ラジオ放送業（衛星放送業を除く）"]
[null,null,"3823","衛星放送業"]
[null,null,"3829","その他の民間放送業"]
[null,null,"3831","有線テレビジョン放送業"]
[null,null,"3832","有線ラジオ放送業"]
[null,null,"3900","主として管理事務を行う本社等"]
[null,null,"3909","その他の管理，補助的経済活動を行う事業所"]
[null,null,"3911","受託開発ソフトウェア業"]
[null,null,"3912","組込みソフトウェア業"]
[null,null,"3913","パッケージソフトウェア業"]
[null,null,"3914","ゲームソフトウェア業"]
[null,null,"3921","情報処理サービス業"]
[null,null,"3922","情報提供サービス業"]
[null,null,"3923","市場調査・世論調査・社会調査業"]
[null,null,"3929","その他の情報処理・提供サービス業"]
[null,null,"4000","主として管理事務を行う本社等"]
[null,null,"4009","その他の管理，補助的経済活動を行う事業所"]
[null,null,"4011","ポータルサイト・サーバ運営業"]
[null,null,"4012","アプリケーション・サービス・コンテンツ・プロバイダ"]
[null,null,"4013","インターネット利用サポート業"]
[null,null,"4100","主として管理事務を行う本社等"]
[null,null,"4109","その他の管理，補助的経済活動を行う事業所"]
[null,null,"4111","映画・ビデオ制作業（テレビジョン番組制作業，アニメーション制作業を除く）"]
[null,null,"4112","テレビジョン番組制作業（アニメーション制作業を除く）"]
[null,null,"4113","アニメーション制作業"]
[null,null,"4114","映画・ビデオ・テレビジョン番組配給業"]
[null,null,"4121","レコード制作業"]
[null,null,"4122","ラジオ番組制作業"]
[null,null,"4131","新聞業"]
[null,null,"4141","出版業"]
[null,null,"4151","広告制作業"]
[null,null,"4161","ニュース供給業"]
[null,null,"4169","その他の映像・音声・文字情報制作に附帯するサービス業"]
["運輸業、郵便業",null,"4200","主として管理事務を行う本社等"]
[null,null,"4209","その他の管理，補助的経済活動を行う事業所"]
[null,null,"4211","普通鉄道業"]
[null,null,"4212","軌道業"]
[null,null,"4213","地下鉄道業"]
[null,null,"4214","モノレール鉄道業（地下鉄道業を除く）"]
[null,null,"4215","案内軌条式鉄道業（地下鉄道業を除く）"]
[null,null,"4216","鋼索鉄道業"]
[null,null,"4217","索道業"]
[null,null,"4219","その他の鉄道業"]
[null,null,"4300","主として管理事務を行う本社等"]
[null,null,"4309","その他の管理，補助的経済活動を行う事業所"]
[null,null,"4311","一般乗合旅客自動車運送業"]
[null,null,"4321","一般乗用旅客自動車運送業"]
[null,null,"4331","一般貸切旅客自動車運送業"]
[null,null,"4391","特定旅客自動車運送業"]
[null,null,"4399","他に分類されない道路旅客運送業"]
[null,null,"4400","主として管理事務を行う本社等"]
[null,null,"4409","その他の管理，補助的経済活動を行う事業所"]
[null,null,"4411","一般貨物自動車運送業（特別積合せ貨物運送業を除く）"]
[null,null,"4412","特別積合せ貨物運送業"]
[null,null,"4421","特定貨物自動車運送業"]
[null,null,"4431","貨物軽自動車運送業"]
[null,null,"4441","集配利用運送業"]
[null,null,"4499","その他の道路貨物運送業"]
[null,null,"4500","主として管理事務を行う本社等"]
[null,null,"4509","その他の管理，補助的経済活動を行う事業所"]
[null,null,"4511","外航旅客海運業"]
[null,null,"4512","外航貨物海運業"]
[null,null,"4521","沿海旅客海運業"]
[null,null,"4522","沿海貨物海運業"]
[null,null,"4531","港湾旅客海運業"]
[null,null,"4532","河川水運業"]
[null,null,"4533","湖沼水運業"]
[null,null,"4541","船舶貸渡業（内航船舶貸渡業を除く）"]
[null,null,"4542","内航船舶貸渡業"]
[null,null,"4600","主として管理事務を行う本社等"]
[null,null,"4609","その他の管理，補助的経済活動を行う事業所"]
[null,null,"4611","航空運送業"]
[null,null,"4621","航空機使用業（航空運送業を除く）"]
[null,null,"4700","主として管理事務を行う本社等"]
[null,null,"4709","その他の管理，補助的経済活動を行う事業所"]
[null,null,"4711","倉庫業（冷蔵倉庫業を除く）"]
[null,null,"4721","冷蔵倉庫業"]
[null,null,"4800","主として管理事務を行う本社等"]
[null,null,"4809","その他の管理，補助的経済活動を行う事業所"]
[null,null,"4811","港湾運送業"]
[null,null,"4821","利用運送業（集配利用運送業を除く）"]
[null,null,"4822","運送取次業"]
[null,null,"4831","運送代理店"]
[null,null,"4841","こん包業（組立こん包業を除く）"]
[null,null,"4842","組立こん包業"]
[null,null,"4851","鉄道施設提供業"]
[null,null,"4852","道路運送固定施設業"]
[null,null,"4853","自動車ターミナル業"]
[null,null,"4854","貨物荷扱固定施設業"]
[null,null,"4855","桟橋泊きょ業"]
[null,null,"4856","飛行場業"]
[null,null,"4891","海運仲立業"]
[null,null,"4899","他に分類されない運輸に附帯するサービス業"]
[null,null,"4901","管理，補助的経済活動を行う事業所"]
[null,null,"4911","郵便業（信書便事業を含む）"]
["卸売業、小売業",null,"5000","主として管理事務を行う本社等"]
[null,null,"5008","自家用倉庫"]
[null,null,"5009","その他の管理，補助的経済活動を行う事業所"]
[null,null,"5011","各種商品卸売業（従業者が常時100人以上のもの）"]
[null,null,"5019","その他の各種商品卸売業"]
[null,null,"5100","主として管理事務を行う本社等"]
[null,null,"5108","自家用倉庫"]
[null,null,"5109","その他の管理，補助的経済活動を行う事業所"]
[null,null,"5111","繊維原料卸売業"]
[null,null,"5112","糸卸売業"]
[null,null,"5113","織物卸売業（室内装飾繊維品を除く）"]
[null,null,"5121","男子服卸売業"]
[null,null,"5122","婦人・子供服卸売業"]
[null,null,"5123","下着類卸売業"]
[null,null,"5129","その他の衣服卸売業"]
[null,null,"5131","寝具類卸売業"]
[null,null,"5132","靴・履物卸売業"]
[null,null,"5133","かばん・袋物卸売業"]
[null,null,"5139","その他の身の回り品卸売業"]
[null,null,"5200","主として管理事務を行う本社等"]
[null,null,"5208","自家用倉庫"]
[null,null,"5209","その他の管理，補助的経済活動を行う事業所"]
[null,null,"5211","米麦卸売業"]
[null,null,"5212","雑穀・豆類卸売業"]
[null,null,"5213","野菜卸売業"]
[null,null,"5214","果実卸売業"]
[null,null,"5215","食肉卸売業"]
[null,null,"5216","生鮮魚介卸売業"]
[null,null,"5219","その他の農畜産物・水産物卸売業"]
[null,null,"5221","砂糖・味そ・しょう油卸売業"]
[null,null,"5222","酒類卸売業"]
[null,null,"5223","乾物卸売業"]
[null,null,"5224","菓子・パン類卸売業"]
[null,null,"5225","飲料卸売業（別掲を除く）"]
[null,null,"5226","茶類卸売業"]
[null,null,"5227","牛乳・乳製品卸売業"]
[null,null,"5229","その他の食料・飲料卸売業"]
[null,null,"5300","主として管理事務を行う本社等"]
[null,null,"5308","自家用倉庫"]
[null,null,"5309","その他の管理，補助的経済活動を行う事業所"]
[null,null,"5311","木材・竹材卸売業"]
[null,null,"5312","セメント卸売業"]
[null,null,"5313","板ガラス卸売業"]
[null,null,"5314","建築用金属製品卸売業（建築用金物を除く）"]
[null,null,"5319","その他の建築材料卸売業"]
[null,null,"5321","塗料卸売業"]
[null,null,"5322","プラスチック卸売業"]
[null,null,"5329","その他の化学製品卸売業"]
[null,null,"5331","石油卸売業"]
[null,null,"5332","鉱物卸売業（石油を除く）"]
[null,null,"5341","鉄鋼粗製品卸売業"]
[null,null,"5342","鉄鋼一次製品卸売業"]
[null,null,"5349","その他の鉄鋼製品卸売業"]
[null,null,"5351","非鉄金属地金卸売業"]
[null,null,"5352","非鉄金属製品卸売業"]
[null,null,"5361","空瓶・空缶等空容器卸売業"]
[null,null,"5362","鉄スクラップ卸売業"]
[null,null,"5363","非鉄金属スクラップ卸売業"]
[null,null,"5364","古紙卸売業"]
[null,null,"5369","その他の再生資源卸売業"]
[null,null,"5400","主として管理事務を行う本社等"]
[null,null,"5408","自家用倉庫"]
[null,null,"5409","その他の管理，補助的経済活動を行う事業所"]
[null,null,"5411","農業用機械器具卸売業"]
[null,null,"5412","建設機械・鉱山機械卸売業"]
[null,null,"5413","金属加工機械卸売業"]
[null,null,"5414","事務用機械器具卸売業"]
[null,null,"5419","その他の産業機械器具卸売業"]
[null,null,"5421","自動車卸売業（二輪自動車を含む）"]
[null,null,"5422","自動車部分品・附属品卸売業（中古品を除く）"]
[null,null,"5423","自動車中古部品卸売業"]
[null,null,"5431","家庭用電気機械器具卸売業"]
[null,null,"5432","電気機械器具卸売業（家庭用電気機械器具を除く）"]
[null,null,"5491","輸送用機械器具卸売業（自動車を除く）"]
[null,null,"5492","計量器・理化学機械器具・光学機械器具等卸売業"]
[null,null,"5493","医療用機械器具卸売業（歯科用機械器具を含む）"]
[null,null,"5500","主として管理事務を行う本社等"]
[null,null,"5508","自家用倉庫"]
[null,null,"5509","その他の管理，補助的経済活動を行う事業所"]
[null,null,"5511","家具・建具卸売業"]
[null,null,"5512","荒物卸売業"]
[null,null,"5513","畳卸売業"]
[null,null,"5514","室内装飾繊維品卸売業"]
[null,null,"5515","陶磁器・ガラス器卸売業"]
[null,null,"5519","その他のじゅう器卸売業"]
[null,null,"5521","医薬品卸売業"]
[null,null,"5522","医療用品卸売業"]
[null,null,"5523","化粧品卸売業"]
[null,null,"5524","合成洗剤卸売業"]
[null,null,"5531","紙卸売業"]
[null,null,"5532","紙製品卸売業"]
[null,null,"5591","金物卸売業"]
[null,null,"5592","肥料・飼料卸売業"]
[null,null,"5593","スポーツ用品卸売業"]
[null,null,"5594","娯楽用品・がん具卸売業"]
[null,null,"5595","たばこ卸売業"]
[null,null,"5596","ジュエリー製品卸売業"]
[null,null,"5597","書籍・雑誌卸売業"]
[null,null,"5598","代理商，仲立業"]
[null,null,"5599","他に分類されないその他の卸売業"]
[null,null,"5600","主として管理事務を行う本社等"]
[null,null,"5608","自家用倉庫"]
[null,null,"5609","その他の管理，補助的経済活動を行う事業所"]
[null,null,"5611","百貨店，総合スーパー"]
[null,null,"5699","その他の各種商品小売業（従業者が常時50人未満のもの）"]
[null,null,"5700","主として管理事務を行う本社等"]
[null,null,"5708","自家用倉庫"]
[null,null,"5709","その他の管理，補助的経済活動を行う事業所"]
[null,null,"5711","呉服・服地小売業"]
[null,null,"5712","寝具小売業"]
[null,null,"5721","男子服小売業"]
[null,null,"5731","婦人服小売業"]
[null,null,"5732","子供服小売業"]
[null,null,"5741","靴小売業"]
[null,null,"5742","履物小売業（靴を除く）"]
[null,null,"5791","かばん・袋物小売業"]
[null,null,"5792","下着類小売業"]
[null,null,"5793","洋品雑貨・小間物小売業"]
[null,null,"5799","他に分類されない織物・衣服・身の回り品小売業"]
[null,null,"5800","主として管理事務を行う本社等"]
[null,null,"5808","自家用倉庫"]
[null,null,"5809","その他の管理，補助的経済活動を行う事業所"]
[null,null,"5811","各種食料品小売業"]
[null,null,"5821","野菜小売業"]
[null,null,"5822","果実小売業"]
[null,null,"5831","食肉小売業（卵，鳥肉を除く）"]
[null,null,"5832","卵・鳥肉小売業"]
[null,null,"5841","鮮魚小売業"]
[null,null,"5851","酒小売業"]
[null,null,"5861","菓子小売業（製造小売）"]
[null,null,"5862","菓子小売業（製造小売でないもの）"]
[null,null,"5863","パン小売業（製造小売）"]
[null,null,"5864","パン小売業（製造小売でないもの）"]
[null,null,"5891","コンビニエンスストア（飲食料品を中心とするものに限る）"]
[null,null,"5892","牛乳小売業"]
[null,null,"5893","飲料小売業（別掲を除く）"]
[null,null,"5894","茶類小売業"]
[null,null,"5895","料理品小売業"]
[null,null,"5896","米穀類小売業"]
[null,null,"5897","豆腐・かまぼこ等加工食品小売業"]
[null,null,"5898","乾物小売業"]
[null,null,"5899","他に分類されない飲食料品小売業"]
[null,null,"5900","主として管理事務を行う本社等"]
[null,null,"5908","自家用倉庫"]
[null,null,"5909","その他の管理，補助的経済活動を行う事業所"]
[null,null,"5911","自動車（新車）小売業"]
[null,null,"5912","中古自動車小売業"]
[null,null,"5913","自動車部分品・附属品小売業"]
[null,null,"5914","二輪自動車小売業（原動機付自転車を含む）"]
[null,null,"5921","自転車小売業"]
[null,null,"5931","電気機械器具小売業（中古品を除く）"]
[null,null,"5932","電気事務機械器具小売業（中古品を除く）"]
[null,null,"5933","中古電気製品小売業"]
[null,null,"5939","その他の機械器具小売業"]
[null,null,"6000","主として管理事務を行う本社等"]
[null,null,"6008","自家用倉庫"]
[null,null,"6009","その他の管理，補助的経済活動を行う事業所"]
[null,null,"6011","家具小売業"]
[null,null,"6012","建具小売業"]
[null,null,"6013","畳小売業"]
[null,null,"6014","宗教用具小売業"]
[null,null,"6021","金物小売業"]
[null,null,"6022","荒物小売業"]
[null,null,"6023","陶磁器・ガラス器小売業"]
[null,null,"6029","他に分類されないじゅう器小売業"]
[null,null,"6031","ドラッグストア"]
[null,null,"6032","医薬品小売業（調剤薬局を除く）"]
[null,null,"6033","調剤薬局"]
[null,null,"6034","化粧品小売業"]
[null,null,"6041","農業用機械器具小売業"]
[null,null,"6042","苗・種子小売業"]
[null,null,"6043","肥料・飼料小売業"]
[null,null,"6051","ガソリンスタンド"]
[null,null,"6052","燃料小売業（ガソリンスタンドを除く）"]
[null,null,"6061","書籍・雑誌小売業（古本を除く）"]
[null,null,"6062","古本小売業"]
[null,null,"6063","新聞小売業"]
[null,null,"6064","紙・文房具小売業"]
[null,null,"6071","スポーツ用品小売業"]
[null,null,"6072","がん具・娯楽用品小売業"]
[null,null,"6073","楽器小売業"]
[null,null,"6081","写真機・写真材料小売業"]
[null,null,"6082","時計・眼鏡・光学機械小売業"]
[null,null,"6091","ホームセンター"]
[null,null,"6092","たばこ・喫煙具専門小売業"]
[null,null,"6093","花・植木小売業"]
[null,null,"6094","建築材料小売業"]
[null,null,"6095","ジュエリー製品小売業"]
[null,null,"6096","ペット・ペット用品小売業"]
[null,null,"6097","骨とう品小売業"]
[null,null,"6098","中古品小売業（骨とう品を除く）"]
[null,null,"6099","他に分類されないその他の小売業"]
[null,null,"6100","主として管理事務を行う本社等"]
[null,null,"6108","自家用倉庫"]
[null,null,"6109","その他の管理，補助的経済活動を行う事業所"]
[null,null,"6111","無店舗小売業（各種商品小売）"]
[null,null,"6112","無店舗小売業（織物・衣服・身の回り品小売）"]
[null,null,"6113","無店舗小売業（飲食料品小売）"]
[null,null,"6114","無店舗小売業（機械器具小売）"]
[null,null,"6119","無店舗小売業（その他の小売）"]
[null,null,"6121","自動販売機による小売業"]
[null,null,"6199","その他の無店舗小売業"]
["金融業、保険業",null,"6200","主として管理事務を行う本社等"]
[null,null,"6209","その他の管理，補助的経済活動を行う事業所"]
[null,null,"6211","中央銀行"]
[null,null,"6221","普通銀行"]
[null,null,"6222","郵便貯金銀行"]
[null,null,"6223","信託銀行"]
[null,null,"6229","その他の銀行"]
[null,null,"6300","主として管理事務を行う本社等"]
[null,null,"6309","その他の管理，補助的経済活動を行う事業所"]
[null,null,"6311","信用金庫・同連合会"]
[null,null,"6312","信用協同組合・同連合会"]
[null,null,"6313","商工組合中央金庫"]
[null,null,"6314","労働金庫・同連合会"]
[null,null,"6321","農林中央金庫"]
[null,null,"6322","信用農業協同組合連合会"]
[null,null,"6323","信用漁業協同組合連合会，信用水産加工業協同組合連合会"]
[null,null,"6324","農業協同組合"]
[null,null,"6325","漁業協同組合，水産加工業協同組合"]
[null,null,"6400","主として管理事務を行う本社等"]
[null,null,"6409","その他の管理，補助的経済活動を行う事業所"]
[null,null,"6411","消費者向け貸金業"]
[null,null,"6412","事業者向け貸金業"]
[null,null,"6421","質屋"]
[null,null,"6431","クレジットカード業"]
[null,null,"6432","割賦金融業"]
[null,null,"6491","政府関係金融機関"]
[null,null,"6492","住宅専門金融業"]
[null,null,"6493","証券金融業"]
[null,null,"6499","他に分類されない非預金信用機関"]
[null,null,"6500","主として管理事務を行う本社等"]
[null,null,"6509","その他の管理，補助的経済活動を行う事業所"]
[null,null,"6511","金融商品取引業（投資助言・代理業・運用業，補助的金融商品取引業を除く）"]
[null,null,"6512","投資助言・代理業"]
[null,null,"6513","投資運用業"]
[null,null,"6514","補助的金融商品取引業"]
[null,null,"6521","商品先物取引業"]
[null,null,"6522","商品投資顧問業"]
[null,null,"6529","その他の商品先物取引業，商品投資顧問業"]
[null,null,"6600","主として管理事務を行う本社等"]
[null,null,"6609","その他の管理，補助的経済活動を行う事業所"]
[null,null,"6611","短資業"]
[null,null,"6612","手形交換所"]
[null,null,"6613","両替業"]
[null,null,"6614","信用保証機関"]
[null,null,"6615","信用保証再保険機関"]
[null,null,"6616","預・貯金等保険機関"]
[null,null,"6617","金融商品取引所"]
[null,null,"6618","商品取引所"]
[null,null,"6619","その他の補助的金融業，金融附帯業"]
[null,null,"6621","運用型信託業"]
[null,null,"6622","管理型信託業"]
[null,null,"6631","金融商品仲介業"]
[null,null,"6632","信託契約代理業"]
[null,null,"6639","その他の金融代理業"]
[null,null,"6700","主として管理事務を行う本社等"]
[null,null,"6709","その他の管理，補助的経済活動を行う事業所"]
[null,null,"6711","生命保険業（郵便保険業，生命保険再保険業を除く）"]
[null,null,"6712","郵便保険業"]
[null,null,"6713","生命保険再保険業"]
[null,null,"6719","その他の生命保険業"]
[null,null,"6721","損害保険業（損害保険再保険業を除く）"]
[null,null,"6722","損害保険再保険業"]
[null,null,"6729","その他の損害保険業"]
[null,null,"6731","共済事業（各種災害補償法によるもの）"]
[null,null,"6732","共済事業（各種協同組合法等によるもの）"]
[null,null,"6733","少額短期保険業"]
[null,null,"6741","生命保険媒介業"]
[null,null,"6742","損害保険代理業"]
[null,null,"6743","共済事業媒介代理業・少額短期保険代理業"]
[null,null,"6751","保険料率算出団体"]
[null,null,"6752","損害査定業"]
[null,null,"6759","その他の保険サービス業"]
["不動産業、物品賃貸業",null,"6800","主として管理事務を行う本社等"]
[null,null,"6809","その他の管理，補助的経済活動を行う事業所"]
[null,null,"6811","建物売買業"]
[null,null,"6812","土地売買業"]
[null,null,"6821","不動産代理業・仲介業"]
[null,null,"6900","主として管理事務を行う本社等"]
[null,null,"6909","その他の管理，補助的経済活動を行う事業所"]
[null,null,"6911","貸事務所業"]
[null,null,"6912","土地賃貸業"]
[null,null,"6919","その他の不動産賃貸業"]
[null,null,"6921","貸家業"]
[null,null,"6922","貸間業"]
[null,null,"6931","駐車場業"]
[null,null,"6941","不動産管理業"]
[null,null,"7000","主として管理事務を行う本社等"]
[null,null,"7009","その他の管理，補助的経済活動を行う事業所"]
[null,null,"7011","総合リース業"]
[null,null,"7019","その他の各種物品賃貸業"]
[null,null,"7021","産業用機械器具賃貸業（建設機械器具を除く）"]
[null,null,"7022","建設機械器具賃貸業"]
[null,null,"7031","事務用機械器具賃貸業（電子計算機を除く）"]
[null,null,"7032","電子計算機・同関連機器賃貸業"]
[null,null,"7041","自動車賃貸業"]
[null,null,"7051","スポーツ・娯楽用品賃貸業"]
[null,null,"7091","映画・演劇用品賃貸業"]
[null,null,"7092","音楽・映像記録物賃貸業（別掲を除く）"]
[null,null,"7093","貸衣しょう業（別掲を除く）"]
[null,null,"7099","他に分類されない物品賃貸業"]
["学術研究、専門・技術サービス業",null,"7101","管理，補助的経済活動を行う事業所"]
[null,null,"7111","理学研究所"]
[null,null,"7112","工学研究所"]
[null,null,"7113","農学研究所"]
[null,null,"7114","医学・薬学研究所"]
[null,null,"7121","人文・社会科学研究所"]
[null,null,"7201","管理，補助的経済活動を行う事業所"]
[null,null,"7211","法律事務所"]
[null,null,"7212","特許事務所"]
[null,null,"7221","公証人役場，司法書士事務所"]
[null,null,"7222","土地家屋調査士事務所"]
[null,null,"7231","行政書士事務所"]
[null,null,"7241","公認会計士事務所"]
[null,null,"7242","税理士事務所"]
[null,null,"7251","社会保険労務士事務所"]
[null,null,"7261","デザイン業"]
[null,null,"7271","著述家業"]
[null,null,"7272","芸術家業"]
[null,null,"7281","経営コンサルタント業"]
[null,null,"7282","純粋持株会社"]
[null,null,"7291","興信所"]
[null,null,"7292","翻訳業（著述家業を除く）"]
[null,null,"7293","通訳業，通訳案内業"]
[null,null,"7294","不動産鑑定業"]
[null,null,"7299","他に分類されない専門サービス業"]
[null,null,"7300","主として管理事務を行う本社等"]
[null,null,"7309","その他の管理，補助的経済活動を行う事業所"]
[null,null,"7311","広告業"]
[null,null,"7401","管理，補助的経済活動を行う事業所"]
[null,null,"7411","獣医業"]
[null,null,"7421","建築設計業"]
[null,null,"7422","測量業"]
[null,null,"7429","その他の土木建築サービス業"]
[null,null,"7431","機械設計業"]
[null,null,"7441","商品検査業"]
[null,null,"7442","非破壊検査業"]
[null,null,"7451","一般計量証明業"]
[null,null,"7452","環境計量証明業"]
[null,null,"7459","その他の計量証明業"]
[null,null,"7461","写真業（商業写真業を除く）"]
[null,null,"7462","商業写真業"]
[null,null,"7499","その他の技術サービス業"]
["宿泊業、飲食サービス業",null,"7500","主として管理事務を行う本社等"]
[null,null,"7509","その他の管理，補助的経済活動を行う事業所"]
[null,null,"7511","旅館，ホテル"]
[null,null,"7521","簡易宿所"]
[null,null,"7531","下宿業"]
[null,null,"7591","会社・団体の宿泊所"]
[null,null,"7592","リゾートクラブ"]
[null,null,"7599","他に分類されない宿泊業"]
[null,null,"7600","主として管理事務を行う本社等"]
[null,null,"7609","その他の管理，補助的経済活動を行う事業所"]
[null,null,"7611","食堂，レストラン（専門料理店を除く）"]
[null,null,"7621","日本料理店"]
[null,null,"7622","料亭"]
[null,null,"7623","中華料理店"]
[null,null,"7624","ラーメン店"]
[null,null,"7625","焼肉店"]
[null,null,"7629","その他の専門料理店"]
[null,null,"7631","そば・うどん店"]
[null,null,"7641","すし店"]
[null,null,"7651","酒場，ビヤホール"]
[null,null,"7661","バー，キャバレー，ナイトクラブ"]
[null,null,"7671","喫茶店"]
[null,null,"7691","ハンバーガー店"]
[null,null,"7692","お好み焼・焼きそば・たこ焼店"]
[null,null,"7699","他に分類されない飲食店"]
[null,null,"7700","主として管理事務を行う本社等"]
[null,null,"7709","その他の管理，補助的経済活動を行う事業所"]
[null,null,"7711","持ち帰り飲食サービス業"]
[null,null,"7721","配達飲食サービス業"]
["生活関連サービス業、娯楽業",null,"7800","主として管理事務を行う本社等"]
[null,null,"7809","その他の管理，補助的経済活動を行う事業所"]
[null,null,"7811","普通洗濯業"]
[null,null,"7812","洗濯物取次業"]
[null,null,"7813","リネンサプライ業"]
[null,null,"7821","理容業"]
[null,null,"7831","美容業"]
[null,null,"7841","一般公衆浴場業"]
[null,null,"7851","その他の公衆浴場業"]
[null,null,"7891","洗張・染物業"]
[null,null,"7892","エステティック業"]
[null,null,"7893","リラクゼーション業(手技を用いるもの)"]
[null,null,"7894","ネイルサービス業"]
[null,null,"7899","他に分類されない洗濯・理容・美容・浴場業"]
[null,null,"7900","主として管理事務を行う本社等"]
[null,null,"7909","その他の管理，補助的経済活動を行う事業所"]
[null,null,"7911","旅行業(旅行業者代理業を除く)"]
[null,null,"7912","旅行業者代理業"]
[null,null,"7921","家事サービス業（住込みのもの）"]
[null,null,"7922","家事サービス業（住込みでないもの）"]
[null,null,"7931","衣服裁縫修理業"]
[null,null,"7941","物品預り業"]
[null,null,"7951","火葬業"]
[null,null,"7952","墓地管理業"]
[null,null,"7961","葬儀業"]
[null,null,"7962","結婚式場業"]
[null,null,"7963","冠婚葬祭互助会"]
[null,null,"7991","食品賃加工業"]
[null,null,"7992","結婚相談業，結婚式場紹介業"]
[null,null,"7993","写真プリント，現像・焼付業"]
[null,null,"7999","他に分類されないその他の生活関連サービス業"]
[null,null,"8000","主として管理事務を行う本社等"]
[null,null,"8009","その他の管理，補助的経済活動を行う事業所"]
[null,null,"8011","映画館"]
[null,null,"8021","劇場"]
[null,null,"8022","興行場"]
[null,null,"8023","劇団"]
[null,null,"8024","楽団，舞踏団"]
[null,null,"8025","演芸・スポーツ等興行団"]
[null,null,"8031","競輪場"]
[null,null,"8032","競馬場"]
[null,null,"8033","自動車・モータボートの競走場"]
[null,null,"8034","競輪競技団"]
[null,null,"8035","競馬競技団"]
[null,null,"8036","自動車・モータボートの競技団"]
[null,null,"8041","スポーツ施設提供業（別掲を除く）"]
[null,null,"8042","体育館"]
[null,null,"8043","ゴルフ場"]
[null,null,"8044","ゴルフ練習場"]
[null,null,"8045","ボウリング場"]
[null,null,"8046","テニス場"]
[null,null,"8047","バッティング・テニス練習場"]
[null,null,"8048","フィットネスクラブ"]
[null,null,"8051","公園"]
[null,null,"8052","遊園地（テーマパークを除く）"]
[null,null,"8053","テーマパーク"]
[null,null,"8061","ビリヤード場"]
[null,null,"8062","囲碁・将棋所"]
[null,null,"8063","マージャンクラブ"]
[null,null,"8064","パチンコホール"]
[null,null,"8065","ゲームセンター"]
[null,null,"8069","その他の遊戯場"]
[null,null,"8091","ダンスホール"]
[null,null,"8092","マリーナ業"]
[null,null,"8093","遊漁船業"]
[null,null,"8094","芸ぎ業"]
[null,null,"8095","カラオケボックス業"]
[null,null,"8096","娯楽に附帯するサービス業"]
[null,null,"8099","他に分類されない娯楽業"]
["教育、学習支援業",null,"8101","管理，補助的経済活動を行う事業所"]
[null,null,"8111","幼稚園"]
[null,null,"8121","小学校"]
[null,null,"8131","中学校"]
[null,null,"8141","高等学校"]
[null,null,"8142","中等教育学校"]
[null,null,"8151","特別支援学校"]
[null,null,"8161","大学"]
[null,null,"8162","短期大学"]
[null,null,"8163","高等専門学校"]
[null,null,"8171","専修学校"]
[null,null,"8172","各種学校"]
[null,null,"8181","学校教育支援機関"]
[null,null,"8191","幼保連携型認定こども園"]
[null,null,"8200","主として管理事務を行う本社等"]
[null,null,"8209","その他の管理，補助的経済活動を行う事業所"]
[null,null,"8211","公民館"]
[null,null,"8212","図書館"]
[null,null,"8213","博物館，美術館"]
[null,null,"8214","動物園，植物園，水族館"]
[null,null,"8215","青少年教育施設"]
[null,null,"8216","社会通信教育"]
[null,null,"8219","その他の社会教育"]
[null,null,"8221","職員教育施設・支援業"]
[null,null,"8222","職業訓練施設"]
[null,null,"8229","その他の職業・教育支援施設"]
[null,null,"8231","学習塾"]
[null,null,"8241","音楽教授業"]
[null,null,"8242","書道教授業"]
[null,null,"8243","生花・茶道教授業"]
[null,null,"8244","そろばん教授業"]
[null,null,"8245","外国語会話教授業"]
[null,null,"8246","スポーツ・健康教授業"]
[null,null,"8249","その他の教養・技能教授業"]
[null,null,"8299","他に分類されない教育，学習支援業"]
["医療、福祉",null,"8300","主として管理事務を行う本社等"]
[null,null,"8309","その他の管理，補助的経済活動を行う事業所"]
[null,null,"8311","一般病院"]
[null,null,"8312","精神科病院"]
[null,null,"8321","有床診療所"]
[null,null,"8322","無床診療所"]
[null,null,"8331","歯科診療所"]
[null,null,"8341","助産所"]
[null,null,"8342","看護業"]
[null,null,"8351","あん摩マッサージ指圧師・はり師・きゅう師・柔道整復師の施術所"]
[null,null,"8359","その他の療術業"]
[null,null,"8361","歯科技工所"]
[null,null,"8369","その他の医療に附帯するサービス業"]
[null,null,"8400","主として管理事務を行う本社等"]
[null,null,"8409","その他の管理，補助的経済活動を行う事業所"]
[null,null,"8411","保健所"]
[null,null,"8421","結核健康相談施設"]
[null,null,"8422","精神保健相談施設"]
[null,null,"8423","母子健康相談施設"]
[null,null,"8429","その他の健康相談施設"]
[null,null,"8491","検疫所（動物検疫所，植物防疫所を除く）"]
[null,null,"8492","検査業"]
[null,null,"8493","消毒業"]
[null,null,"8499","他に分類されない保健衛生"]
[null,null,"8500","主として管理事務を行う本社等"]
[null,null,"8509","その他の管理，補助的経済活動を行う事業所"]
[null,null,"8511","社会保険事業団体"]
[null,null,"8521","福祉事務所"]
[null,null,"8531","保育所"]
[null,null,"8539","その他の児童福祉事業"]
[null,null,"8541","特別養護老人ホーム"]
[null,null,"8542","介護老人保健施設"]
[null,null,"8543","通所・短期入所介護事業"]
[null,null,"8544","訪問介護事業"]
[null,null,"8545","認知症老人グループホーム"]
[null,null,"8546","有料老人ホーム"]
[null,null,"8549","その他の老人福祉・介護事業"]
[null,null,"8551","居住支援事業"]
[null,null,"8559","その他の障害者福祉事業"]
[null,null,"8591","更生保護事業"]
[null,null,"8599","他に分類されない社会保険・社会福祉・介護事業"]
["複合サービス業",null,"8601","管理，補助的経済活動を行う事業所"]
[null,null,"8611","郵便局"]
[null,null,"8621","簡易郵便局"]
[null,null,"8629","その他の郵便局受託業"]
[null,null,"8701","管理，補助的経済活動を行う事業所"]
[null,null,"8711","農業協同組合（他に分類されないもの）"]
[null,null,"8712","漁業協同組合（他に分類されないもの）"]
[null,null,"8713","水産加工業協同組合（他に分類されないもの）"]
[null,null,"8714","森林組合（他に分類されないもの）"]
[null,null,"8721","事業協同組合（他に分類されないもの）"]
["サービス業",null,"8800","主として管理事務を行う本社等"]
[null,null,"8809","その他の管理，補助的経済活動を行う事業所"]
[null,null,"8811","し尿収集運搬業"]
[null,null,"8812","し尿処分業"]
[null,null,"8813","浄化槽清掃業"]
[null,null,"8814","浄化槽保守点検業"]
[null,null,"8815","ごみ収集運搬業"]
[null,null,"8816","ごみ処分業"]
[null,null,"8817","清掃事務所"]
[null,null,"8821","産業廃棄物収集運搬業"]
[null,null,"8822","産業廃棄物処分業"]
[null,null,"8823","特別管理産業廃棄物収集運搬業"]
[null,null,"8824","特別管理産業廃棄物処分業"]
[null,null,"8891","死亡獣畜取扱業"]
[null,null,"8899","他に分類されない廃棄物処理業"]
[null,null,"8901","管理，補助的経済活動を行う事業所"]
[null,null,"8911","自動車一般整備業"]
[null,null,"8919","その他の自動車整備業"]
[null,null,"9000","主として管理事務を行う本社等"]
[null,null,"9009","その他の管理，補助的経済活動を行う事業所"]
[null,null,"9011","一般機械修理業（建設・鉱山機械を除く）"]
[null,null,"9012","建設・鉱山機械整備業"]
[null,null,"9021","電気機械器具修理業"]
[null,null,"9031","表具業"]
[null,null,"9091","家具修理業"]
[null,null,"9092","時計修理業"]
[null,null,"9093","履物修理業"]
[null,null,"9094","かじ業"]
[null,null,"9099","他に分類されない修理業"]
[null,null,"9100","主として管理事務を行う本社等"]
[null,null,"9109","その他の管理，補助的経済活動を行う事業所"]
[null,null,"9111","職業紹介業"]
[null,null,"9121","労働者派遣業"]
[null,null,"9200","主として管理事務を行う本社等"]
[null,null,"9209","その他の管理，補助的経済活動を行う事業所"]
[null,null,"9211","速記・ワープロ入力業"]
[null,null,"9212","複写業"]
[null,null,"9221","ビルメンテナンス業"]
[null,null,"9229","その他の建物サービス業"]
[null,null,"9231","警備業"]
[null,null,"9291","ディスプレイ業"]
[null,null,"9292","産業用設備洗浄業"]
[null,null,"9293","看板書き業"]
[null,null,"9294","コールセンター業"]
[null,null,"9299","他に分類されないその他の事業サービス業"]
[null,null,"9311","実業団体"]
[null,null,"9312","同業団体"]
[null,null,"9321","労働団体"]
[null,null,"9331","学術団体"]
[null,null,"9332","文化団体"]
[null,null,"9341","政治団体"]
[null,null,"9399","他に分類されない非営利的団体"]
[null,null,"9411","神社，神道教会"]
[null,null,"9412","教派事務所"]
[null,null,"9421","寺院，仏教教会"]
[null,null,"9422","宗派事務所"]
[null,null,"9431","キリスト教教会，修道院"]
[null,null,"9432","教団事務所"]
[null,null,"9491","その他の宗教の教会"]
[null,null,"9499","その他の宗教の教団事務所"]
[null,null,"9501","管理，補助的経済活動を行う事業所"]
[null,null,"9511","集会場"]
[null,null,"9521","と畜場"]
[null,null,"9599","他に分類されないサービス業"]
[null,null,"9611","外国公館"]
[null,null,"9699","その他の外国公務"]
["公務",null,"9711","立法機関"]
[null,null,"9721","司法機関"]
[null,null,"9731","行政機関"]
[null,null,"9811","都道府県機関"]
[null,null,"9821","市町村機関"]
["分類不能",null,"9999","分類不能の産業"]

{"sheet":"安全衛生規則","index":14,"n_rows":13,"n_cols":3,"rows_kept":13,"cut":false,"hidden":false,"merged":[[0,0,0,4]]}
["雇入れ時の教育（労働安全衛生規則第３５条）"]
[]
[null,"号数","内容"]
[null,1,"機械等、原材料等の危険性又は有害性及びこれらの取扱い方法に関すること。"]
[null,2,"安全装置、有害物抑制装置又は保護具の性能及びこれらの取扱い方法に関すること。"]
[null,3,"作業手順に関すること。"]
[null,4,"作業開始時の点検に関すること。"]
[null,5,"当該業務に関して発生するおそれのある疾病の原因及び予防に関すること。"]
[null,6,"整理、整頓及び清潔の保持に関すること。"]
[null,7,"事故時等における応急措置及び退避に関すること。"]
[null,8,"前各号に掲げるもののほか、当該業務に関する安全又は衛生のために必要な事項"]
[null,"↑"]
["第２面（４）①「教育の内容」を記載した場合は、「イロハニホ」の右側の枠内に１～８のいずれかの番号を記載すること"]

{"sheet":"第10面","index":15,"n_rows":27,"n_cols":6,"rows_kept":27,"cut":false,"hidden":false,"merged":[[26,1,26,5],[25,1,25,5],[11,1,11,5],[12,1,12,5],[20,1,20,5],[22,1,22,5],[13,1,13,5],[18,1,18,5],[14,1,14,5],[21,1,21,5],[24,1,24,5],[23,1,23,5],[1,0,1,4],[16,1,16,5],[6,1,6,5],[8,1,8,5],[9,1,9,5],[3,0,3,5],[10,1,10,5]]}
[null,null,null,null,null,"（日本産業規格Ａ列４）"]
["様式第11号（第10面）"]
[]
["記載要領"]
[]
[]
[null,"第１面"]
[]
["１","　「許可番号」及び「許可年月日」欄には、許可番号等を記入すること。\n"]
["２","　第１面上方の提出者欄には、氏名（法人にあってはその名称及び代表者の氏名）を記載すること。"]
["３","　６欄及び７欄については、許可申請時（更新を受けた事業主にあっては直近の更新時）における企業規模及び日本標準産業分類に基づく産業分類（細分類）を記載すること。ただし、7欄については、日本標準産業分類に変更があつた場合は、最新の分類に基づいて記載すること。６欄の「大企業」は中小企業以外のものを指し、「中小企業」は中小企業基本法（昭和38年法律第154号）第２条第１項に規定する中小企業者又は同条第５項に規定する小規模企業者を指すこと。"]
["４","　８欄には、年度報告の報告対象期間である、事業年度の開始の日（事業を事業年度の途中で開始した場合にあっては、当該事業の開始の日）及び当該事業年度の終了の日（事業を事業年度の途中で終了した場合にあっては、当該事業の終了の日）を記載すること。"]
["５","　10欄の「親会社」とは、労働者派遣事業の適正な運営の確保及び派遣労働者の保護等に関する法律施行規則（昭和61年労働省令第20号。以下「労働者派遣法施行規則」という。）第18条の３第２項各号に規定する者をいうこと。当該親会社が労働者派遣事業の許可番号又は民営職業紹介事業の許可・届出番号を有している場合には、当該番号を記載すること。なお、当該親会社が、旧特定労働者派遣事業に係る事業所である場合には、12欄に親会社の当該旧特定労働者派遣事業に係る届出受理番号を記載すること。"]
["６","　11欄について、労働者派遣事業と請負により行われる事業との区分に関する基準（昭和61年労働省告示第37号）により請負事業となる事業を実施している場合には、１を○で囲むこと。その際、製造業に分類される事業者であって、構内請負（発注者の事業所構内において、自社の雇用する労働者を使用し、生産活動を請け負うこと）を実施している場合には、「うち構内請負の実施」欄の１を○で囲むこと。"]
[]
[]
["Ⅰ","年度報告"]
[]
[null,"第２面"]
[]
[1,"　（１）欄の「派遣労働者数等雇用実績」には、報告対象期間の末日における派遣労働者等の実人数等を記載すること。"]
["２","　（１）欄の③の「無期雇用派遣労働者」とは、労働者派遣事業の適正な運営の確保及び派遣労働者の保護等に関する法律（昭和60年法律第88号。以下「労働者派遣法」という。）第30条の２第１項に規定する無期雇用派遣労働者を、④の「有期雇用派遣労働者」とは、労働者派遣法第30条第1項に規定する有期雇用派遣労働者をいうこと（以下同じ。）。"]
[3,"　（１）欄の⑤の「日雇派遣労働者」とは、労働者派遣法第35条の４第１項に規定する日雇労働者をいうこと。なお、30日以内の期間を定めた契約を更新して通算30日を超えるような場合も含まれることに留意すること（以下同じ。）。"]
[4,"　（１）欄の⑥の「登録者」とは、労働者派遣をするに際し、登録されている者の中から期間を定めて雇用した者を派遣労働者として労働者派遣の対象とする制度（登録制度）に基づいて、派遣労働者になることを目的として派遣元事業主に登録した者であって、既に雇用されている者を含み、過去１年を超える期間にわたり雇用されたことのない者を除くこと。"]
[5,"　（１）欄の「通算雇用期間が１年以上の派遣労働者」とは、報告対象期間末日において通算雇用期間（実際に雇用された期間をいう。以下同じ。）が１年以上である派遣労働者を、「通算雇用期間が１年未満の派遣労働者」とは、報告対象期間末日において通算雇用期間が１年未満の派遣労働者をいうこと。また、「同じ職場に１年以上派遣見込みの者」とは、雇用契約期間が通算して１年以上であり、かつ、当該派遣労働者の同じ職場での派遣就業に係る派遣契約が通算して１年以上である派遣労働者をいうこと。"]
[6,"　（２）欄の「労働者派遣事業の売上高」には、労働者派遣事業を行う事業所ごとの労働者派遣事業の売上高について、決算後の金額を記載すること（事業所ごとの額を計上すること。円単位で記載すること（千円、万円単位などや小数点は使用しないこと。）。）。"]
[7,"　（３）欄の「請負事業の売上高」には、当該事業所で請負事業を行っている場合の請負事業に係る売上高について、決算後の金額を記載すること（事業所ごとの額を計上すること。円単位で記載すること（千円、万円単位などや小数点は使用しないこと。）。）。"]

{"sheet":"第11面 ","index":16,"n_rows":23,"n_cols":6,"rows_kept":23,"cut":false,"hidden":false,"merged":[[21,1,21,5],[22,1,22,5],[15,1,15,5],[16,1,16,5],[17,1,17,5],[18,1,18,5],[19,1,19,5],[20,1,20,5],[1,0,1,4],[14,1,14,5],[3,1,3,5],[4,1,4,5],[5,1,5,5],[6,1,6,5],[7,1,7,5],[8,1,8,5],[9,1,9,5],[10,1,10,5],[11,1,11,5],[12,1,12,5],[13,1,13,5]]}
[null,null,null,null,null,"（日本産業規格Ａ列４）"]
["様式第11号（第11面）"]
[]
[8,"　（４）欄については、報告対象期間内に海外派遣した派遣労働者の実人数を記載すること。"]
[9,"　（５）欄の①欄については、報告対象期間内に派遣先の事業所の実数を記載すること。報告対象期間内に労働者を派遣しなかった場合は「０」を記載すること。"]
[10,"　（５）欄の②欄については、報告対象期間内に締結した労働者派遣契約（個別契約）に係る派遣期間について、総件数（延べ件数）及び内訳としての期間別の件数を記載すること。なお、１つの労働者派遣契約において複数の派遣期間がある場合は、それぞれの期間別に計上した件数を記載すること。（５）欄の①欄が「０」であった場合は、「労働者派遣契約がなかった」欄に○印をすること。"]
[11,"　（５）欄の③欄については、報告対象期間（第１面の８欄）内における主な派遣先の事業主のうち取引額上位５位までの事業主名を記載すること。（５）欄の①欄が「０」の場合及び②欄に「労働者派遣契約がなかった」欄に○印をした場合には、（５）欄の③欄には記載の必要がないこと。"]
[12,"　（６）欄中、選択肢として番号を提示している部分については、該当する番号を記載すること。"]
[13,"　（６）欄については、①欄には「労働安全衛生法第59条の規定に基づく安全衛生教育」の報告対象期間内における実績を、②欄には一般教養としての訓練等の「その他の教育訓練」（安全衛生教育及び派遣労働者のキャリアアップ措置に関するもの以外の訓練）の報告対象期間内における実績を、それぞれ記載すること。"]
[14,"　（６）欄の①欄及び②欄については、教育訓練コース単位で記載し、①欄には５コースまでを、②欄には３コースまでを記載すること。それ以上のコースがある場合は、別紙に記載すること。"]
[15,"　（６）欄の①欄について、実施内容が労働安全衛生法第59条第１項の規定に該当する場合は、その内容に合致する労働安全衛生規則第35条第１項各号のうち該当号数に応じた１～８までの数字を、労働安全衛生法第59条第２項の規定に該当する場合は９を、同条第３項の規定に該当する場合は10を、その訓練の主な内容に応じて最大２つまで記載すること。"]
[16,"　（６）欄の①欄について、「教育の内容」については、「４Ｓ（整理・整頓・清掃・清潔）運動」、「ＫＹ（危険予知）活動」、「ヒヤリハット事例の報告」等具体的に記載すること。"]
[17,"　（６）欄の①欄及び②欄について、「１人当たりの平均実施時間」には、報告対象期間内に、各コースごとに派遣労働者が受講した１人当たりの平均実施時間数を記載すること。"]
[18,"　（６）欄の②欄について、「OJT」とは業務の遂行の過程内において行う教育訓練を、｢OFF-JT」とはそれ以外の教育訓練をいうこと。"]
[19,"　（６）欄の②欄について、「訓練費負担の別」において、「１ 無償（実費負担なし）」とは、テキスト代等を含め訓練の全てを無償で実施することを、「２ 無償（実費負担あり）」とは、テキスト代や材料費等の実費負担があるが原則として無償で実施することを、「３ 有償」とは、これ以外をいうこと。"]
[20,"　（６）欄の②欄について、「賃金支給の別」において、「１ 有給（無給部分なし）」とは、用意した全ての教育訓練の実施に当たって給与を支払う場合を、「２ 有給（無給部分あり）」とは、自主的に実施する教育訓練については無給とする場合があるが原則として教育訓練の実施に当たって給与を支払う場合を、「３ 無給」とは、教育訓練の実施時に給与を支払わない場合をいうこと。"]
[21,"　（７）欄について、イには、報告対象期間内に、新たに、労働者派遣の役務の提供を受けようとする者から紹介予定派遣に係る労働者派遣契約の申込みのあった派遣労働者の実人数を記載し、そのうち報告対象期間内において紹介予定派遣により労働者派遣された派遣労働者数の実人数をロに記載すること。ハには、報告対象期間内において紹介予定派遣により派遣先に職業紹介された派遣労働者の実人数を記載し、そのうち報告対象期間内において派遣先で雇用された派遣労働者の実人数をニに記載すること。"]
[22,"　（８）欄については、報告対象期間内における雇用安定措置の対象派遣労働者（雇用安定措置を講じなかった者を含む。）及び各雇用安定措置の区分ごとの派遣労働者の延べ人数を記載すること。「３年見込み」、「２年半から３年未満見込み」、「２年から２年半未満見込み」、「１年半から２年未満見込み」及び「１年から１年半未満見込み」の対象派遣労働者については、各期間に該当し、かつ当該労働者派遣の終了後も継続して就業することを希望している者とすること。同一の派遣労働者が複数の期間の区分に該当する場合は、該当する区分のそれぞれの欄に計上すること。"]
[23,"　（８）欄の期間の区分は、派遣先の同じ職場への派遣期間の見込みの期間とすること。「同じ職場への派遣期間の見込み」とは、派遣労働者の派遣就業に係る派遣契約期間を通算したものをいうこと。ただし、派遣契約期間の途中で派遣労働者の雇用契約が満了したり、当該派遣労働者の派遣先が変わったりした場合については、当該派遣労働者が同じ職場へ派遣されていた通算期間とすること。"]
[24,"　（８）欄の「第１号の措置（派遣先への直接雇用の依頼）を講じた人数」、「第２号の措置（新たな派遣先の提供）を講じた人数」、「第３号の措置（派遣元で派遣労働者以外の労働者として無期雇用）を講じた人数」及び「第４号の措置（その他の措置）を講じた人数」については、同一の派遣労働者に複数の措置を講じた場合においては講じた措置のそれぞれの欄に計上すること。"]
[25,"　（８）欄の「第４号の措置（その他の措置）を講じた人数」について、「教育訓練（雇用を維持したままのものに限る）」、「紹介予定派遣」及び「左記以外のその他の措置」については、同一の派遣労働者に複数の措置を講じた場合においては講じた措置のそれぞれの欄に計上すること。"]
[26,"　（８）欄の「第１号の措置（派遣先への直接雇用の依頼）を講じた人数」について、前年度に派遣先への直接雇用の依頼を行ったが前年度中には直接雇用に結びつかず、年度を超えて当年度で直接雇用に結びついた場合は、当年度でも引き続き依頼を行ったものとして、「第１号の措置（派遣先への直接雇用の依頼）を講じた人数」及び「うち、派遣先で雇用された人数」のそれぞれに当該人数を記載すること。"]
[27,"　（８）欄の「第４号の措置（その他の措置）を講じた人数」の「左記以外のその他の措置」については、民営職業紹介事業の許可・届出を行っている派遣元事業主が実施する職業紹介等の措置をいうこと。"]

{"sheet":"第12面","index":17,"n_rows":11,"n_cols":6,"rows_kept":11,"cut":false,"hidden":false,"merged":[[8,1,8,5],[9,1,9,5],[10,1,10,5],[1,0,1,4],[3,1,3,5],[6,1,6,5],[7,1,7,5],[5,1,5,5]]}
[]
["様式第11号（第12面）"]
[null,null,null,null,null,"（日本産業規格Ａ列４）"]
[null,"第３面から第５面まで"]
[]
[28,"　（９）欄の①欄及び①の（続）欄並びに②欄の「協定対象派遣労働者」には、厚生労働省職業安定局長の定めるところにより、労働者派遣法第30条の５に規定する協定対象派遣労働者の１人１日当たりの賃金を記載すること。"]
[29,"　（９）欄の①欄及び①の（続）欄には、報告対象期間内における、最新の日本標準職業分類（中分類）に基づく職種に基づき、該当する派遣労働者（日雇派遣労働者を除く。）の区分及び従事した業務の種類別に応じた実績を所定の欄に記載すること。「14-3 その他の医療技術者」には「14-1 診療放射線技師」及び「14-2 臨床検査技師」の業務の実績は含めないこと。なお、「66　建設従事者（建設躯体工事従事者を除く）」、「67　電気工事従事者」等については、一部派遣禁止業務も含まれていることに留意すること。また、「12-1 医師」等の医療従事者については、紹介予定派遣や産前産後休業の代替等の場合にのみ派遣することが認められていることに留意すること。 "]
[30,"　（９）欄の②欄には、報告対象期間（第１面の８欄）内において、日雇派遣労働者を労働者派遣事業の適正な運営の確保及び派遣労働者の保護等に関する法律施行令（昭和61年政令第95号。以下「労働者派遣法施行令」という。）第４条第１項第１号から第19号までに掲げる業務に従事させている場合、従事した業務の種類別に応じた実績を所定の欄に記載すること。なお、「4-19 看護業務」については、労働者派遣法施行令第４条第２項の規定に基づき准看護師等の看護師以外の者が行う業務を含まないこと。"]
[31,"　（９）欄の①欄及び①の（続）欄並びに②欄の「派遣料金」については、１人１日当たりの派遣料金（消費税を含む。）を記載し、報告対象期間内において派遣先から得た派遣料金の総額を派遣労働者が従事した総労働時間数で除した１時間当たりの金額をもとに、８時間（１日）業務に従事したものとして算定すること（小数点以下は四捨五入）。①欄及び①の（続）欄の「全業務平均」には、各業務の単純平均額を記載すること（小数点以下は四捨五入）。なお、②欄の日雇派遣労働者についての「全業務平均」は、労働者派遣法施行令第４条第１号から第19号までに掲げる業務だけでなく、日雇派遣労働者が従事した全ての業務の単純平均額を記載すること（小数点以下は四捨五入）。 "]
[32,"　（９）欄の①欄及び①の（続）欄並びに②欄の「賃金」（労働基準法第11条で定める給料、手当、賞与その他名称の如何を問わず、労働の対償として使用者が労働者に支払う全てのものをいう。）については、１人１日当たりの賃金を記載し、報告対象期間（第１面の８欄）内において派遣労働者に支払った賃金の総額を派遣労働者が従事した総労働時間数で除した１時間当たりの金額をもとに８時間（１日）業務に従事したものとして算定すること（小数点以下は四捨五入）。なお、①欄及び①の（続）欄の「全業務平均」には、各業務の単純平均額を記載すること（小数点以下は四捨五入）。また、②欄の日雇派遣労働者についての「全業務平均」は、労働者派遣法施行令第４条第１号から第19号までに掲げる業務だけでなく、日雇派遣労働者が従事した全ての業務の単純平均額を記載すること（小数点以下は四捨五入）。 "]
[33,"　（10）欄の「マージン率等の情報提供の状況」については、該当する各欄に○印をすること（複数選択可）。 "]

{"sheet":"第13面 ","index":18,"n_rows":22,"n_cols":2,"rows_kept":22,"cut":false,"hidden":false,"merged":[[19,1,19,5],[20,1,20,5],[21,1,21,5],[13,1,13,5],[14,1,14,5],[15,1,15,5],[16,1,16,5],[17,1,17,5],[18,1,18,5],[12,1,12,5],[1,0,1,4],[3,1,3,5],[5,1,5,5],[6,1,6,5],[7,1,7,5],[8,1,8,5],[9,1,9,5],[10,1,10,5],[11,1,11,5]]}
[]
["様式第11号（第13面）"]
[]
[null,"第６面"]
[]
[34,"　（11）キャリアアップ措置の実績については、報告対象期間内において労働者派遣法で求められるキャリアアップ措置の要件を満たしているものを記載すること。その上で、事業主が独自に実施したキャリアアップ措置についても追加的に記載してもよいこと。"]
[35,"　（11）欄の①欄の「キャリアコンサルタント」とは、厚生労働大臣又は厚生労働大臣が指定する者が行う試験の合格者をいうこと。"]
[36,"　（11）欄の①欄の「うち派遣元責任者との兼任状況」欄は、キャリアコンサルティングの窓口担当者の計の内数を記載すること。\n"]
[37,"　（11）欄の①欄の「キャリアコンサルティングに関する職務経験･知見のある者」欄について、「職務経験あり」とは、過去において職務としてキャリアコンサルティングの経験がある者、職業能力開発推進者に就任したことがある者、人事部門で３年以上の経験を積んでいる者等をいうこと。また、「知見あり」とは、過去においてキャリアコンサルティング等についての職務経験はないがその知識を有する者をいう。"]
[38,"　（11）欄の②欄の「実施した者の人数」については、①欄の担当者が行うキャリアコンサルティングを受けた実人数を記載すること。"]
[39,"　（11）欄の③欄については、１年以上の雇用見込みのあるフルタイム勤務の者、１年以上の雇用見込みのある短時間勤務の者又は１年未満の雇用見込みである者ごとに別葉にして記載すること。なお、「１ フルタイム（１年以上雇用見込み）」、「２ 短時間勤務（１年以上雇用見込み）」、「３ １年未満雇用見込み」のいずれかに該当する番号に○印を付けること。"]
[40,"　（11）欄の③欄イ～ホについては、訓練の種類別に訓練コース単位で記載すること。記載欄以上のコースがある場合、別紙に記載すること。"]
[41,"　（11）欄の③欄の「訓練の内容等」欄には、「係長・課長就任研修」、「○○語研修」等訓練が特定できるよう具体的に記載すること。"]
[42,"　（11）欄の③欄の「対象となる派遣労働者」欄の上段については、該当する「種別」の番号を最大２つまで記載すること。この際、登録中の者は、キャリアアップに資する教育訓練の対象となる派遣労働者に含まれないことに留意すること。\n　「対象となる派遣労働者」欄の下段については、各年ごとの対象となる派遣労働者の実人数をそれぞれ記載すること。「対象となる派遣労働者」について、「訓練内容に係る能力を十分に有していることが明確な者」は、受講済みとして扱い、「対象となる派遣労働者数」に算入しなくてもよいこと。"]
[43,"　（11）欄の③欄の「（上段）実施時間の総計」については、各受講者に対する教育訓練実施時間の各年の１年間の合計（受講者数×教育訓練１コマの時間（複数回実施の場合は、その合計））を記載すること。対象となる派遣労働者に対して、ある訓練を１年目、２年目とそれぞれ段階ごとに行う場合は、１つの同じコースの中で、それぞれの年数の欄に記載すること。また、同一の派遣労働者に行う訓練であっても、２年目以降は１年目とは異なるコースに位置づける訓練等の場合は、２つ以上の異なるコースとして、それぞれの年数に応じた欄に記載すること。\n　おって、42の「訓練内容に係る能力を十分に有していることが明確な者」を受講済みとした訓練については、当該者は実際には訓練を受講していないので、「（上段）実施時間の総計」に算入することはできないものであること。\n　「（下段）受講者の実人数」欄には、各年ごとの受講者の実人数を記載すること。各年に同一の訓練を複数回受講した者は、同年内に重複計上しないこと（例えば、１年目と２年目に同一の訓練を複数回受講した者は、それぞれの年数の欄に１人ずつ計上すること）。"]
[44,"　（11）欄の③欄の「OJT」とは業務の遂行の過程内において行う教育訓練を、｢OFF-JT」とはそれ以外の教育訓練のことをいうこと。キャリアアップに資する教育訓練としてOJTを実施するに当たっては、派遣先と事前に調整等を行った上で計画的なOJTを実施しなければならないことに留意すること。"]
[45,"　（11）欄の③欄の「訓練費負担の別」において、「１無償（実費負担なし）」とは、テキスト代等を含め教育訓練の全てを無償で実施することを、「２ 無償（実費負担あり）」とは、テキスト代や材料費等の実費負担があるが原則として無償で実施することを、「３ 有償」とは、これ以外をいうこと。"]
[46,"　（11）欄の③欄の「賃金支給の別」において、「１ 有給（無給部分なし）」とは、用意した全ての教育訓練の実施に当たって給与を支払う場合を、「２ 有給（無給部分あり）」とは、自主的に実施する教育訓練については無給とする場合があるが原則として教育訓練の実施に当たって給与を支払う場合を、「３ 無給」とは、教育訓練の実施時に給与を支払わない場合をいうこと。"]
[47,"　（11）欄の③欄の「厚生労働大臣が定める基準を満たす教育訓練について１人当たりの平均実施時間」については、「各年ごとの厚生労働大臣が定める基準を満たす教育訓練の「実施時間の総計」の合計」を「各年ごとの厚生労働大臣が定める基準を満たす教育訓練の受講者の実人数」で除して算出された数字を記載すること。また、合計する各年ごとの訓練実施時間は、「訓練の方法の別」が「１ 計画的なOJT」又は「２ OFF-JT」、「訓練費負担の別」が「１ 無償（実費負担なし）」、「賃金支給の別」が「１ 有給（無給部分なし）」である等、法で定めるキャリアアップに関する要件を満たすもの（厚生労働大臣が定める基準を満たす教育訓練）のみを合計したものであること。なお、フルタイム勤務の者であって１年以上の雇用見込みのあるものについては、１年で概ね８時間以上とすることとされていること。"]
[48,"　（11）欄の③欄の「１～３年目のａの合計（ｃ）」及び「１～３年目のｂの合計（ｄ）」については、それぞれ１年目から３年目までの値を合計した数字を記載すること。\n　また、「１～３年目の厚生労働大臣が定める基準を満たす教育訓練について１人当たりの平均実施時間（ｃ÷ｄ）」には、上述の（ｃ）を（ｄ）で除して算出された数字を記載すること。"]
[49,"　（11）欄の③欄については、上記47を満たさないものであっても派遣労働者のキャリアアップに資すると事業主が実施した全ての訓練について記載すること。ただし、上記47を満たしていない場合、都道府県労働局による指導の対象となる可能性があることに留意すること。\n"]
[50,"　（11）欄の③欄の「「キャリアアップに資する教育訓練」実施に当たって支払った賃金額（１人１時間当たり平均）」については、キャリアアップに資する教育訓練時に支払った賃金の平均額を記載すること。"]

{"sheet":"第14面","index":19,"n_rows":21,"n_cols":6,"rows_kept":21,"cut":false,"hidden":false,"merged":[[20,1,20,5],[5,1,5,5],[11,1,11,5],[13,1,13,5],[14,1,14,5],[16,1,16,5],[7,1,7,5],[9,1,9,5],[10,1,10,5],[12,1,12,5],[15,1,15,5],[1,0,1,4],[3,0,3,5],[17,1,17,5],[18,1,18,5],[19,1,19,5]]}
[null,null,null,null,null,"（日本産業規格Ａ列４）"]
["様式第11号（第14面）"]
[]
["記載要領"]
[]
["Ⅱ","６月１日現在の状況報告"]
[]
[null,"第７面から第９面まで"]
[]
["1","　１欄の①欄の「派遣労働者の実人数」には、報告の対象となる６月１日現在（６月１日が日曜日に当たる場合は６月２日現在とし、土曜日に当たる場合は６月３日現在とする。以下同じ。）において派遣していた派遣労働者の実人数を記載すること。 "]
["2","　１欄の①欄、②欄、②の（続）欄、③欄及び⑤欄の「協定対象派遣労働者」には、厚生労働省職業安定局長の定めるところにより、労働者派遣法第30条の５に規定する協定対象派遣労働者の実人数を記載すること。"]
["3","　１欄の②欄及び②の（続）欄の「業務別派遣労働者の実人数」には、報告の対象となる６月１日現在、最新の日本標準職業分類（中分類）に基づく職種に基づき、該当する派遣労働者の区分及び従事した業務の種類別に応じた実績を所定の欄に記載すること。複数種類の業務に従事した派遣労働者については、報告の対象となる６月１日現在においてもつとも多く従事した業務に従事したものとすること。「14-3 その他の医療技術者」には「14-1 診療放射線技師」及び「14-2 臨床検査技師」の業務の実績は含めないこと。なお、「66　建設従事者（建設躯体工事従事者を除く）」、「67　電気工事従事者」等については、一部派遣禁止業務も含まれていることに留意すること。また、「12-1 医師」等の医療従事者については、紹介予定派遣や産前産後休業の代替等の場合にのみ限定して派遣が認められていることに留意すること。"]
["4","　１欄の③欄の「特定製造業務従事者の実人数」には、報告の対象となる６月１日現在において労働者派遣法附則第４項の「特定製造業務」に従事した派遣労働者の実人数を記載すること。"]
["5","　１欄の④欄の「期間制限の対象外となる労働者派遣に係る派遣労働者の実人数」には、６月１日現在における労働者派遣法第40条の２第１項第２号から第５号までに該当する労働者派遣に係る派遣労働者（日雇派遣労働者を除く。）の実人数（１欄の①欄に記載した派遣労働者計の内数）を記載すること。なお、複数の事項に該当する派遣労働者については、報告の対象となる６月１日現在においてもつとも該当する事項に記載すること。 "]
["6","　１欄の⑤欄の「日雇派遣労働者の実人数」のうち、「高齢者」とは労働者派遣法施行令第４条第２項第１号に掲げる者のことをいい、「昼間学生」とは同項第２号に掲げる者のことをいい、「副業として従事する者」とは同項第３号に該当する者であって労働者派遣法施行規則第28条の３第１項第１号に該当するもののことをいい、「主たる生計者でない者」とは労働者派遣法施行令第４条第２項第３号に該当する者であつて労働者派遣法施行規則第28条の３第１項第２号に該当するものをいうこと。当該日雇派遣労働者が、複数の種類に該当する場合、もつとも主たる理由と考えられるものに算定すること。  "]
["7","　１欄の⑥欄の「特定製造業務従事者である日雇派遣労働者の実人数」には、６月１日現在における労働者派遣法附則第４項の「特定製造業務」に従事していた日雇派遣労働者の実人数（１欄の⑤欄に記載した日雇派遣労働者計の内数）を記載すること。"]
["8","　１欄の⑦欄の「日雇派遣労働者の業務別実人数」には、６月１日現在における労働者派遣法施行令第４条第１項第１号から第19号までに掲げる業務に従事している日雇派遣労働者の実人数（１欄の⑤欄に記載した日雇派遣労働者計の内数）を記載すること。なお、複数種類の業務に従事した日雇派遣労働者については、報告の対象となる６月１日現在においてもつとも多く従事した業務に従事したものすること。なお、「4-19 看護業務」については、労働者派遣法施行令第４条第２項の規定に基づき准看護師等の看護師以外の者が行う業務を含まないこと。"]
["9","　１欄の⑧欄の「日雇派遣労働者のうち期間制限の対象外となる派遣労働者の実人数」には、６月１日現在における労働者派遣法第40条の２第１項第３号から第５号までに該当する労働者派遣に係る日雇派遣労働者の実人数（１欄の⑤欄に記載した日雇派遣労働者計の内数）を記載すること。なお、複数の事項に該当する派遣労働者については、報告の対象となる６月１日現在においてもつとも該当する事項に記載すること。 "]
["10","　２欄には、６月１日現在において労働者派遣事業に係る登録者であつた者の実数（同日に派遣されている労働者を含み、過去１年以内において派遣されたことがない派遣労働者を除く。）を記載すること。"]
["11","　３欄には、報告の対象となる６月１日現在において派遣していた派遣労働者について、それぞれの保険の種類ごとに、適用されている者の実数を記載すること。なお、６月１日現在において派遣していない者は除かれることに留意すること。 "]
["12","　所定の欄に記載し得ないときは、別紙に記載して添付すること。"]